Workbook

Sheet Summary
A1: Creighton University
A2: =IF(ISBLANK('General Input'!B5),"",'General Input'!B5) -> 
A3: =IF(ISBLANK('General Input'!B7),"",'General Input'!B7) -> 
A4: =IF(ISBLANK('General Input'!B6),"",'General Input'!B6) ->  | B4: 2014-2015 | C4: 2015-2016 | D4: 2016-2017 | E4: 2017-2018 | F4: 2018-2019
A5: Five Year Financial Projections | B5: Year 1 | C5: Year 2 | D5: Year 3 | E5: Year 4 | F5: Year 5 | G5: 5 Year Total
A6: =CONCATENATE("Contact",":"," ",'General Input'!B8) -> Contact: | B6: Fiscal Year | C6: Fiscal Year | D6: Fiscal Year | E6: Fiscal Year | F6: Fiscal Year
A7: Revenue
A8: Tuition
A9: Tuition | B9: =SUM('By Term Summary'!B9:H9) -> 0 | C9: =SUM('By Term Summary'!I9:O9) -> 0 | D9: =SUM('By Term Summary'!P9:V9) -> 0 | E9: =SUM('By Term Summary'!W9:AC9) -> 0 | F9: =SUM('By Term Summary'!AD9:AJ9) -> 0 | G9: =SUM(B9:F9) -> 0
A10: Tuition Discounts | B10: =SUM('By Term Summary'!B10:H10) -> 0 | C10: =SUM('By Term Summary'!I10:O10) -> 0 | D10: =SUM('By Term Summary'!P10:V10) -> 0 | E10: =SUM('By Term Summary'!W10:AC10) -> 0 | F10: =SUM('By Term Summary'!AD10:AJ10) -> 0 | G10: =SUM(B10:F10) -> 0
A11: Net Tuition | B11: =SUM(B9:B10) -> 0 | C11: 0 | D11: 0 | E11: 0 | F11: 0 | G11: 0
A13: Endowment Income | B13: =SUM('By Term Summary'!B13:H13) -> 0 | C13: =SUM('By Term Summary'!I13:O13) -> 0 | D13: =SUM('By Term Summary'!P13:V13) -> 0 | E13: =SUM('By Term Summary'!W13:AC13) -> 0 | F13: =SUM('By Term Summary'!AD13:AJ13) -> 0 | G13: =SUM(B13:F13) -> 0
A14: Gift Income | B14: =SUM('By Term Summary'!B14:H14) -> 0 | C14: =SUM('By Term Summary'!I14:O14) -> 0 | D14: =SUM('By Term Summary'!P14:V14) -> 0 | E14: =SUM('By Term Summary'!W14:AC14) -> 0 | F14: =SUM('By Term Summary'!AD14:AJ14) -> 0 | G14: =SUM(B14:F14) -> 0
A15: Other Revenue | B15: =SUM('By Term Summary'!B15:H15) -> 0 | C15: =SUM('By Term Summary'!I15:O15) -> 0 | D15: =SUM('By Term Summary'!P15:V15) -> 0 | E15: =SUM('By Term Summary'!W15:AC15) -> 0 | F15: =SUM('By Term Summary'!AD15:AJ15) -> 0 | G15: =SUM(B15:F15) -> 0
A16: Total Revenue | B16: =SUM(B11:B15) -> 0 | C16: 0 | D16: 0 | E16: 0 | F16: 0 | G16: 0
A18: Expense
A19: Faculty Salaries | B19: =SUM('By Term Summary'!B19:H19) -> 0 | C19: =SUM('By Term Summary'!I19:O19) -> 0 | D19: =SUM('By Term Summary'!P19:V19) -> 0 | E19: =SUM('By Term Summary'!W19:AC19) -> 0 | F19: =SUM('By Term Summary'!AD19:AJ19) -> 0 | G19: =SUM(B19:F19) -> 0
A20: Adjunct faculty | B20: =SUM('By Term Summary'!B20:H20) -> 0 | C20: =SUM('By Term Summary'!I20:O20) -> 0 | D20: =SUM('By Term Summary'!P20:V20) -> 0 | E20: =SUM('By Term Summary'!W20:AC20) -> 0 | F20: =SUM('By Term Summary'!AD20:AJ20) -> 0 | G20: =SUM(B20:F20) -> 0
A21: Staff Salaries | B21: =SUM('By Term Summary'!B21:H21) -> 0 | C21: =SUM('By Term Summary'!I21:O21) -> 0 | D21: =SUM('By Term Summary'!P21:V21) -> 0 | E21: =SUM('By Term Summary'!W21:AC21) -> 0 | F21: =SUM('By Term Summary'!AD21:AJ21) -> 0 | G21: 0
A22: Course development stipends | B22: =SUM('By Term Summary'!B22:H22) -> 0 | C22: =SUM('By Term Summary'!I22:O22) -> 0 | D22: =SUM('By Term Summary'!P22:V22) -> 0 | E22: =SUM('By Term Summary'!W22:AC22) -> 0 | F22: =SUM('By Term Summary'!AD22:AJ22) -> 0 | G22: 0
A23: Other Salaries | B23: =SUM('By Term Summary'!B23:H23) -> 0 | C23: =SUM('By Term Summary'!I23:O23) -> 0 | D23: =SUM('By Term Summary'!P23:V23) -> 0 | E23: =SUM('By Term Summary'!W23:AC23) -> 0 | F23: =SUM('By Term Summary'!AD23:AJ23) -> 0 | G23: 0
A24: Total Salaries | B24: =SUM(B19:B23) -> 0 | C24: 0 | D24: 0 | E24: 0 | F24: 0 | G24: 0
A26: Benefits | B26: =SUM('By Term Summary'!B26:H26) -> 0 | C26: =SUM('By Term Summary'!I26:O26) -> 0 | D26: =SUM('By Term Summary'!P26:V26) -> 0 | E26: =SUM('By Term Summary'!W26:AC26) -> 0 | F26: =SUM('By Term Summary'!AD26:AJ26) -> 0 | G26: =SUM(B26:F26) -> 0
A28: Non Capital Expenses | B28: =SUM('By Term Summary'!B27:H27) -> 25000 | C28: =SUM('By Term Summary'!I27:O27) -> 25000 | D28: =SUM('By Term Summary'!P27:V27) -> 25000 | E28: =SUM('By Term Summary'!W27:AC27) -> 25000 | F28: =SUM('By Term Summary'!AD27:AJ27) -> 25000 | G28: =SUM(B28:F28) -> 125000
A29: Capital Expenditures | B29: =SUM('By Term Summary'!B28:H28) -> 0 | C29: =SUM('By Term Summary'!I28:O28) -> 0 | D29: =SUM('By Term Summary'!P28:V28) -> 0 | E29: =SUM('By Term Summary'!W28:AC28) -> 0 | F29: =SUM('By Term Summary'!AD28:AJ28) -> 0 | G29: =SUM(B29:F29) -> 0
A30: Other Initial Investment | B30: =SUM('By Term Summary'!B29:H29) -> 0 | C30: =SUM('By Term Summary'!I29:O29) -> 0 | D30: =SUM('By Term Summary'!P29:V29) -> 0 | E30: =SUM('By Term Summary'!W29:AC29) -> 0 | F30: =SUM('By Term Summary'!AD29:AJ29) -> 0 | G30: =SUM(B30:F30) -> 0
A31: Total Expense | B31: =SUM(B24:B30) -> 25000 | C31: =SUM(C24:C30) -> 25000 | D31: 25000 | E31: 25000 | F31: 25000 | G31: 125000
A33: Transfers | B33: =SUM('By Term Summary'!B32:H32) -> 0 | C33: =SUM('By Term Summary'!I32:O32) -> 0 | D33: =SUM('By Term Summary'!D32:J32) -> 0 | E33: =SUM('By Term Summary'!W32:AC32) -> 0 | F33: =SUM('By Term Summary'!AD32:AJ32) -> 0 | G33: =SUM(B33:F33) -> 0
A35: Contribution Margin | B35: =B16-B31-B33 -> -25000 | C35: -25000 | D35: -25000 | E35: -25000 | F35: -25000 | G35: -125000
A36: Contribution Margin % | B36: =B35/B16 ->  | C36: =C35/C16 -> 
A38: Administrative Overhead | B38: =SUM('By Term Summary'!B36:H36) -> 0 | C38: =SUM('By Term Summary'!I36:O36) -> 0 | D38: =SUM('By Term Summary'!P36:V36) -> 0 | E38: =SUM('By Term Summary'!W36:AC36) -> 0 | F38: =SUM('By Term Summary'!AD36:AJ36) -> 0 | G38: =SUM(B38:F38) -> 0
A39: Total Overhead | B39: =SUM(B38:B38) -> 0 | C39: 0 | D39: 0 | E39: 0 | F39: 0 | G39: 0
A41: Net Margin | B41: =B35-B39 -> -25000 | C41: -25000 | D41: -25000 | E41: -25000 | F41: -25000 | G41: -125000
A42: Net Margin % | B42: =B41/B16 -> 
A44: Cash Flow* | B44: =B35 -> -25000 | C44: -25000 | D44: -25000 | E44: -25000 | F44: -25000 | G44: -125000
A45: Accumulated Cash Flow | C45: =B44+C44 -> -50000 | D45: =C45+D44 -> -75000 | E45: =D45+E44 -> -100000 | F45: =E45+F44 -> -125000
A46: Payback | B46: =IF(F45<=0,"After Year 5",IF(E45<=0,(F45)/F44+4,IF(D45<=0,(E45)/E44+3,IF(C45<=0,(D45)/D44+2,IF(B44<=0,(C45)/C44+1,(B31/B16)))))) -> After Year 5
A49: Reallocated Faculty and Staff
A50: Expense
A51: Faculty Salaries to be reallocated | B51: =SUM('By Term Summary'!B48:H48) -> 0 | C51: =SUM('By Term Summary'!I48:O48) -> 0 | D51: =SUM('By Term Summary'!P48:V48) -> 0 | E51: =SUM('By Term Summary'!W48:AC48) -> 0 | F51: =SUM('By Term Summary'!AD48:AJ48) -> 0 | G51: =SUM(B51:F51) -> 0
A52: Adjunct faculty to be reallocated | B52: =SUM('By Term Summary'!B49:H49) -> 0 | C52: =SUM('By Term Summary'!I49:O49) -> 0 | D52: =SUM('By Term Summary'!P49:V49) -> 0 | E52: =SUM('By Term Summary'!W49:AC49) -> 0 | F52: =SUM('By Term Summary'!AD49:AJ49) -> 0 | G52: =SUM(B52:F52) -> 0
A53: Staff to be reallocated | B53: =SUM('By Term Summary'!B50:H50) -> 0 | C53: =SUM('By Term Summary'!I50:O50) -> 0 | D53: =SUM('By Term Summary'!P50:V50) -> 0 | E53: =SUM('By Term Summary'!W50:AC50) -> 0 | F53: =SUM('By Term Summary'!AD50:AJ50) -> 0 | G53: 0
A54: Total Reallocated Salaries | B54: =SUM(B51:B53) -> 0 | C54: =SUM(C51:C53) -> 0 | D54: 0 | E54: 0 | F54: 0 | G54: 0
A56: Benefits | B56: =SUM('By Term Summary'!B53:H53) -> 0 | C56: =SUM('By Term Summary'!I53:O53) -> 0 | D56: =SUM('By Term Summary'!P53:V53) -> 0 | E56: =SUM('By Term Summary'!W53:AC53) -> 0 | F56: =SUM('By Term Summary'!AD53:AJ53) -> 0 | G56: =SUM(B56:F56) -> 0
A57: Total Expense | B57: =SUM(B54:B56) -> 0 | C57: =SUM(C54:C56) -> 0 | D57: 0 | E57: 0 | F57: 0 | G57: 0
A60: Net Less Reallocated Faculty and Staff
A61: Expense
A62: Faculty Salaries | B62: =B19-B51 -> 0 | C62: =C19-C51 -> 0 | D62: 0 | E62: 0 | F62: 0 | G62: 0
A63: Adjunct faculty | B63: =B20-B52 -> 0 | C63: 0 | D63: 0 | E63: 0 | F63: 0 | G63: 0
A64: Staff Salaries | B64: =B21-B53 -> 0 | C64: 0 | D64: 0 | E64: 0 | F64: 0 | G64: 0
A65: Course development stipends | B65: =B22 -> 0 | C65: =C22 -> 0 | D65: 0 | E65: 0 | F65: 0 | G65: 0
A66: Other Salaries | B66: =B23 -> 0 | C66: =C23 -> 0 | D66: 0 | E66: 0 | F66: 0 | G66: 0
A67: Total Salaries | B67: =SUM(B62:B66) -> 0 | C67: =SUM(C62:C66) -> 0 | D67: 0 | E67: 0 | F67: 0 | G67: 0
A69: Benefits | B69: =B26-B56 -> 0 | C69: =C26-C56 -> 0 | D69: 0 | E69: 0 | F69: 0 | G69: 0
A71: Non Capital Expenses | B71: =B28 -> 25000 | C71: 25000 | D71: 25000 | E71: 25000 | F71: 25000 | G71: 125000
A72: Capital Expenditures | B72: 0 | C72: 0 | D72: 0 | E72: 0 | F72: 0 | G72: 0
A73: Total Expense | B73: =SUM(B67:B72) -> 25000 | C73: 25000 | D73: 25000 | E73: 25000 | F73: 25000 | G73: 125000
A75: Transfers | B75: =B33 -> 0 | C75: 0 | D75: 0 | E75: 0 | F75: 0 | G75: 0
A77: Contribution Margin | B77: =B16-B73-B75 -> -25000 | C77: -25000 | D77: -25000 | E77: -25000 | F77: -25000 | G77: -125000
A78: Contribution Margin % | B78: =B77/B16 -> 
A80: Administrative Overhead | B80: =SUM('By Term Summary'!B77:H77) -> 0 | C80: =SUM('By Term Summary'!I77:O77) -> 0 | D80: =SUM('By Term Summary'!P77:V77) -> 0 | E80: =SUM('By Term Summary'!W77:AC77) -> 0 | F80: =SUM('By Term Summary'!AD77:AJ77) -> 0 | G80: =SUM(B80:F80) -> 0
A81: Total Overhead | B81: =SUM(B80:B80) -> 0 | C81: 0 | D81: 0 | E81: 0 | F81: 0 | G81: 0
A83: Net Margin | B83: =B77-B81 -> -25000 | C83: -25000 | D83: -25000 | E83: -25000 | F83: -25000 | G83: -125000
A84: Net Margin % | B84: =B83/B16 -> 
A86: Cash Flow* | B86: =B77 -> -25000 | C86: -25000 | D86: -25000 | E86: -25000 | F86: -25000 | G86: -125000
A87: Accumulated Cash Flow | C87: =B86+C86 -> -50000 | D87: =C87+D86 -> -75000 | E87: =D87+E86 -> -100000 | F87: =E87+F86 -> -125000
A88: Payback | B88: =IF(F87<=0,"After Year 5",IF(E87<=0,(F86-F87)/F87+4,IF(D87<=0,(E86-E87)/E87+3,IF(C87<=0,(D86-D87)/D87+2,IF(B86<=0,(C86-C87)/C87+1,(B73/B16)))))) -> After Year 5
A90: FTE Student Enrollment | B90: =SUM('By Term Summary'!B85:H85) -> 0 | C90: =SUM('By Term Summary'!I85:O85) -> 0 | D90: =SUM('By Term Summary'!P85:V85) -> 0 | E90: =SUM('By Term Summary'!W85:AC85) -> 0 | F90: =SUM('By Term Summary'!AD85:AJ85) -> 0 | G90: =SUM(B90:F90) -> 0
A91: FTE Faculty Increase | B91: =SUM('By Term Summary'!B86:H86) -> 0 | C91: =SUM('By Term Summary'!I86:O86) -> 0 | D91: =SUM('By Term Summary'!P86:V86) -> 0 | E91: =SUM('By Term Summary'!W86:AC86) -> 0 | F91: =SUM('By Term Summary'!AD86:AJ86) -> 0 | G91: =SUM(B91:F91) -> 0
A92: FTE Staff Increase | B92: =SUM('By Term Summary'!B87:H87) -> 0 | C92: =SUM('By Term Summary'!I87:O87) -> 0 | D92: =SUM('By Term Summary'!P87:V87) -> 0 | E92: =SUM('By Term Summary'!W87:AC87) -> 0 | F92: =SUM('By Term Summary'!AD87:AJ87) -> 0 | G92: =SUM(B92:F92) -> 0
A94: *Overhead is excluded from the cash flow calculations

Sheet Assumptions (hidden)
A1: =Summary!A1 -> Creighton University | I1: Legend:
A2: =Summary!A2 ->  | J2: Standard assumption, no changes
A3: =Summary!A6 -> Contact: | B3: 2014-2015 | C3: 2015-2016 | D3: 2016-2017 | E3: 2017-2018 | F3: 2018-2019 | J3: Assumption input cell
A4: General assumptions: | B4: Year 1 | C4: Year 2 | D4: Year 3 | E4: Year 4 | F4: Year 5 | J4: Calculated cell
A5: Program Type:
A6: Annual growth rate for tuition and fees | C6: 0.025 | D6: 0.025 | E6: 0.025 | F6: 0.025
A7: Traditional undergraduate tuition rate per semester | B7: 16898 | C7: =ROUND(B7*(1+C$6),0) -> 17320 | D7: 17753 | E7: 18197 | F7: 18652 | G7: 2013-2014 actual
A8: Non-traditional undergraduate tuition rate | B8: 412 | C8: =ROUND(B8*(1+C$6),0) -> 422 | D8: 433 | E8: 444 | F8: 455 | G8: Default is based on BILS program
A9: Graduate tuition rate | B9: 780 | C9: =ROUND(B9*(1+C$6),0) -> 800 | D9: 820 | E9: 841 | F9: 862 | G9: Default is current grad per hour rate
A10: Flat rate certificate programs rate per student | B10: 1500 | C10: 1538 | D10: 1576 | E10: 1615 | F10: 1655
A11: Credit hour based certificate programs rate per credit hour | B11: 780 | C11: 800 | D11: 820 | E11: 841 | F11: 862
A12: Traditional undergraduate tuition discount rate per semester | B12: 0.475 | C12: =B12 -> 0.475 | D12: 0.475 | E12: 0.475 | F12: 0.475 | G12: Based on fall 2013 incoming freshmen class rate
A13: Non-traditional undergraduate tuition discount rate per semester | B13: 0 | C13: 0 | D13: 0 | E13: 0 | F13: 0
A14: Graduate tuition discount | B14: 0 | C14: 0 | D14: 0 | E14: 0 | F14: 0
A15: Benefits rate | B15: 0.286 | C15: 0.286 | D15: 0.286 | E15: 0.286 | F15: 0.286
A16: Departmental costs as % of revenue | B16: 0.1 | C16: 0.1 | D16: 0.1 | E16: 0.1 | F16: 0.1
A17: Program specific annual marketing costs | B17: 25000 | C17: 25000 | D17: 25000 | E17: 25000 | F17: 25000
A18: Administrative overhead, including facilities & marketing | B18: 0.256 | C18: 0.256 | D18: 0.256 | E18: 0.256 | F18: 0.256
A19: Direct instructional expenses per student (excluded for online programs) | B19: 150 | C19: 150 | D19: 150 | E19: 150 | F19: 150
A20: Office start up costs for new faculty and staff (computer & phone) | B20: 1500 | C20: =B20 -> 1500 | D20: =C20 -> 1500 | E20: 1500 | F20: 1500
A22: Traditional undergraduate FTE calculation, assumes all full time
A23: Non-traditional undergraduate FTE calculation, assumes 24 credit hours per FTE
A24: Graduate enrollment FTE calculation assumes 20 credit hours per FTE
A26: Additional assumptions used in model:

Sheet Input Form
A1: New Program Financial Projection Template | I1: version 2
B3: You may receive the following Security Warnings when you open this file:
C4: Macros have been disabled.
D5: Click on "Enable Content"
C7: Do you want to make this file a Trusted Document?
D8: It's okay to click on "Yes"
B10: Click on the button below to begin entering data in the form

Sheet By Term Summary (hidden)
A1: Creighton University
A2: ='General Input'!B5 -> 0
A3: ='General Input'!B7 -> 0
A4: ='General Input'!B6 -> 0
A5: 5 year financial projections | B5: Year 1 | I5: Year 2 | P5: Year 3 | W5: Year 4 | AD5: Year 5
B6: Summer Term 2 | C6: Fall Term 1 | D6: Fall Term 2 | E6: Winter Term | F6: Spring Term 1 | G6: Spring Term 2 | H6: Summer Term 1 | I6: Summer Term 2 | J6: Fall Term 1 | K6: Fall Term 2 | L6: Winter Term | M6: Spring Term 1 | N6: Spring Term 2 | O6: Summer Term 1 | P6: Summer Term 2 | Q6: Fall Term 1 | R6: Fall Term 2 | S6: Winter Term | T6: Spring Term 1 | U6: Spring Term 2 | V6: Summer Term 1 | W6: Summer Term 2 | X6: Fall Term 1 | Y6: Fall Term 2 | Z6: Winter Term | AA6: Spring Term 1 | AB6: Spring Term 2 | AC6: Summer Term 1 | AD6: Summer Term 2 | AE6: Fall Term 1 | AF6: Fall Term 2 | AG6: Winter Term | AH6: Spring Term 1 | AI6: Spring Term 2 | AJ6: Summer Term 1
A7: Revenue
A8: Tuition
A9: Tuition | B9: ='UG Trad Input'!C13+'UG Non-Trad Input'!C14+'Grad Input'!C13+'Certificate Input'!C7+'Certificate Input'!C14 -> 0 | C9: ='UG Trad Input'!D13+'UG Non-Trad Input'!D14+'Grad Input'!D13+'Certificate Input'!D7+'Certificate Input'!D14 -> 0 | D9: ='UG Trad Input'!E13+'UG Non-Trad Input'!E14+'Grad Input'!E13+'Certificate Input'!E7+'Certificate Input'!E14 -> 0 | E9: ='UG Trad Input'!F13+'UG Non-Trad Input'!F14+'Grad Input'!F13+'Certificate Input'!F7+'Certificate Input'!F14 -> 0 | F9: ='UG Trad Input'!G13+'UG Non-Trad Input'!G14+'Grad Input'!G13+'Certificate Input'!G7+'Certificate Input'!G14 -> 0 | G9: ='UG Trad Input'!H13+'UG Non-Trad Input'!H14+'Grad Input'!H13+'Certificate Input'!H7+'Certificate Input'!H14 -> 0 | H9: ='UG Trad Input'!I13+'UG Non-Trad Input'!I14+'Grad Input'!I13+'Certificate Input'!I7+'Certificate Input'!I14 -> 0 | I9: ='UG Trad Input'!J13+'UG Non-Trad Input'!J14+'Grad Input'!J13+'Certificate Input'!J7+'Certificate Input'!J14 -> 0 | J9: ='UG Trad Input'!K13+'UG Non-Trad Input'!K14+'Grad Input'!K13+'Certificate Input'!K7+'Certificate Input'!K14 -> 0 | K9: ='UG Trad Input'!L13+'UG Non-Trad Input'!L14+'Grad Input'!L13+'Certificate Input'!L7+'Certificate Input'!L14 -> 0 | L9: ='UG Trad Input'!M13+'UG Non-Trad Input'!M14+'Grad Input'!M13+'Certificate Input'!M7+'Certificate Input'!M14 -> 0 | M9: ='UG Trad Input'!N13+'UG Non-Trad Input'!N14+'Grad Input'!N13+'Certificate Input'!N7+'Certificate Input'!N14 -> 0 | N9: ='UG Trad Input'!O13+'UG Non-Trad Input'!O14+'Grad Input'!O13+'Certificate Input'!O7+'Certificate Input'!O14 -> 0 | O9: ='UG Trad Input'!P13+'UG Non-Trad Input'!P14+'Grad Input'!P13+'Certificate Input'!P7+'Certificate Input'!P14 -> 0 | P9: ='UG Trad Input'!Q13+'UG Non-Trad Input'!Q14+'Grad Input'!Q13+'Certificate Input'!Q7+'Certificate Input'!Q14 -> 0 | Q9: ='UG Trad Input'!R13+'UG Non-Trad Input'!R14+'Grad Input'!R13+'Certificate Input'!R7+'Certificate Input'!R14 -> 0 | R9: ='UG Trad Input'!S13+'UG Non-Trad Input'!S14+'Grad Input'!S13+'Certificate Input'!S7+'Certificate Input'!S14 -> 0 | S9: ='UG Trad Input'!T13+'UG Non-Trad Input'!T14+'Grad Input'!T13+'Certificate Input'!T7+'Certificate Input'!T14 -> 0 | T9: ='UG Trad Input'!U13+'UG Non-Trad Input'!U14+'Grad Input'!U13+'Certificate Input'!U7+'Certificate Input'!U14 -> 0 | U9: ='UG Trad Input'!V13+'UG Non-Trad Input'!V14+'Grad Input'!V13+'Certificate Input'!V7+'Certificate Input'!V14 -> 0 | V9: ='UG Trad Input'!W13+'UG Non-Trad Input'!W14+'Grad Input'!W13+'Certificate Input'!W7+'Certificate Input'!W14 -> 0 | W9: ='UG Trad Input'!X13+'UG Non-Trad Input'!X14+'Grad Input'!X13+'Certificate Input'!X7+'Certificate Input'!X14 -> 0 | X9: ='UG Trad Input'!Y13+'UG Non-Trad Input'!Y14+'Grad Input'!Y13+'Certificate Input'!Y7+'Certificate Input'!Y14 -> 0 | Y9: ='UG Trad Input'!Z13+'UG Non-Trad Input'!Z14+'Grad Input'!Z13+'Certificate Input'!Z7+'Certificate Input'!Z14 -> 0 | Z9: ='UG Trad Input'!AA13+'UG Non-Trad Input'!AA14+'Grad Input'!AA13+'Certificate Input'!AA7+'Certificate Input'!AA14 -> 0 | AA9: ='UG Trad Input'!AB13+'UG Non-Trad Input'!AB14+'Grad Input'!AB13+'Certificate Input'!AB7+'Certificate Input'!AB14 -> 0 | AB9: ='UG Trad Input'!AC13+'UG Non-Trad Input'!AC14+'Grad Input'!AC13+'Certificate Input'!AC7+'Certificate Input'!AC14 -> 0 | AC9: ='UG Trad Input'!AD13+'UG Non-Trad Input'!AD14+'Grad Input'!AD13+'Certificate Input'!AD7+'Certificate Input'!AD14 -> 0 | AD9: ='UG Trad Input'!AE13+'UG Non-Trad Input'!AE14+'Grad Input'!AE13+'Certificate Input'!AE7+'Certificate Input'!AE14 -> 0 | AE9: ='UG Trad Input'!AF13+'UG Non-Trad Input'!AF14+'Grad Input'!AF13+'Certificate Input'!AF7+'Certificate Input'!AF14 -> 0 | AF9: ='UG Trad Input'!AG13+'UG Non-Trad Input'!AG14+'Grad Input'!AG13+'Certificate Input'!AG7+'Certificate Input'!AG14 -> 0 | AG9: ='UG Trad Input'!AH13+'UG Non-Trad Input'!AH14+'Grad Input'!AH13+'Certificate Input'!AH7+'Certificate Input'!AH14 -> 0 | AH9: ='UG Trad Input'!AI13+'UG Non-Trad Input'!AI14+'Grad Input'!AI13+'Certificate Input'!AI7+'Certificate Input'!AI14 -> 0 | AI9: ='UG Trad Input'!AJ13+'UG Non-Trad Input'!AJ14+'Grad Input'!AJ13+'Certificate Input'!AJ7+'Certificate Input'!AJ14 -> 0 | AJ9: ='UG Trad Input'!AK13+'UG Non-Trad Input'!AK14+'Grad Input'!AK13+'Certificate Input'!AK7+'Certificate Input'!AK14 -> 0
A10: Tuition Discounts | B10: ='UG Trad Input'!C14+'UG Non-Trad Input'!C15+'Grad Input'!C14 -> 0 | C10: ='UG Trad Input'!D14+'UG Non-Trad Input'!D15+'Grad Input'!D14 -> 0 | D10: ='UG Trad Input'!E14+'UG Non-Trad Input'!E15+'Grad Input'!E14 -> 0 | E10: ='UG Trad Input'!F14+'UG Non-Trad Input'!F15+'Grad Input'!F14 -> 0 | F10: ='UG Trad Input'!G14+'UG Non-Trad Input'!G15+'Grad Input'!G14 -> 0 | G10: ='UG Trad Input'!H14+'UG Non-Trad Input'!H15+'Grad Input'!H14 -> 0 | H10: ='UG Trad Input'!I14+'UG Non-Trad Input'!I15+'Grad Input'!I14 -> 0 | I10: ='UG Trad Input'!J14+'UG Non-Trad Input'!J15+'Grad Input'!J14 -> 0 | J10: ='UG Trad Input'!K14+'UG Non-Trad Input'!K15+'Grad Input'!K14 -> 0 | K10: ='UG Trad Input'!L14+'UG Non-Trad Input'!L15+'Grad Input'!L14 -> 0 | L10: ='UG Trad Input'!M14+'UG Non-Trad Input'!M15+'Grad Input'!M14 -> 0 | M10: ='UG Trad Input'!N14+'UG Non-Trad Input'!N15+'Grad Input'!N14 -> 0 | N10: ='UG Trad Input'!O14+'UG Non-Trad Input'!O15+'Grad Input'!O14 -> 0 | O10: ='UG Trad Input'!P14+'UG Non-Trad Input'!P15+'Grad Input'!P14 -> 0 | P10: ='UG Trad Input'!Q14+'UG Non-Trad Input'!Q15+'Grad Input'!Q14 -> 0 | Q10: ='UG Trad Input'!R14+'UG Non-Trad Input'!R15+'Grad Input'!R14 -> 0 | R10: ='UG Trad Input'!S14+'UG Non-Trad Input'!S15+'Grad Input'!S14 -> 0 | S10: ='UG Trad Input'!T14+'UG Non-Trad Input'!T15+'Grad Input'!T14 -> 0 | T10: ='UG Trad Input'!U14+'UG Non-Trad Input'!U15+'Grad Input'!U14 -> 0 | U10: ='UG Trad Input'!V14+'UG Non-Trad Input'!V15+'Grad Input'!V14 -> 0 | V10: ='UG Trad Input'!W14+'UG Non-Trad Input'!W15+'Grad Input'!W14 -> 0 | W10: ='UG Trad Input'!X14+'UG Non-Trad Input'!X15+'Grad Input'!X14 -> 0 | X10: ='UG Trad Input'!Y14+'UG Non-Trad Input'!Y15+'Grad Input'!Y14 -> 0 | Y10: ='UG Trad Input'!Z14+'UG Non-Trad Input'!Z15+'Grad Input'!Z14 -> 0 | Z10: ='UG Trad Input'!AA14+'UG Non-Trad Input'!AA15+'Grad Input'!AA14 -> 0 | AA10: ='UG Trad Input'!AB14+'UG Non-Trad Input'!AB15+'Grad Input'!AB14 -> 0 | AB10: ='UG Trad Input'!AC14+'UG Non-Trad Input'!AC15+'Grad Input'!AC14 -> 0 | AC10: ='UG Trad Input'!AD14+'UG Non-Trad Input'!AD15+'Grad Input'!AD14 -> 0 | AD10: ='UG Trad Input'!AE14+'UG Non-Trad Input'!AE15+'Grad Input'!AE14 -> 0 | AE10: ='UG Trad Input'!AF14+'UG Non-Trad Input'!AF15+'Grad Input'!AF14 -> 0 | AF10: ='UG Trad Input'!AG14+'UG Non-Trad Input'!AG15+'Grad Input'!AG14 -> 0 | AG10: ='UG Trad Input'!AH14+'UG Non-Trad Input'!AH15+'Grad Input'!AH14 -> 0 | AH10: ='UG Trad Input'!AI14+'UG Non-Trad Input'!AI15+'Grad Input'!AI14 -> 0 | AI10: ='UG Trad Input'!AJ14+'UG Non-Trad Input'!AJ15+'Grad Input'!AJ14 -> 0 | AJ10: ='UG Trad Input'!AK14+'UG Non-Trad Input'!AK15+'Grad Input'!AK14 -> 0
A11: Net Tuition | B11: =SUM(B9:B10) -> 0 | C11: =SUM(C9:C10) -> 0 | D11: 0 | E11: 0 | F11: 0 | G11: 0 | H11: 0 | I11: 0 | J11: 0 | K11: 0 | L11: 0 | M11: 0 | N11: 0 | O11: 0 | P11: 0 | Q11: 0 | R11: 0 | S11: 0 | T11: 0 | U11: 0 | V11: 0 | W11: 0 | X11: 0 | Y11: 0 | Z11: 0 | AA11: 0 | AB11: 0 | AC11: 0 | AD11: 0 | AE11: 0 | AF11: 0 | AG11: 0 | AH11: 0 | AI11: 0 | AJ11: 0
A13: Endowment Income | B13: ='Endow&Gift Input'!C4 -> 0 | C13: ='Endow&Gift Input'!D4 -> 0 | D13: ='Endow&Gift Input'!E4 -> 0 | E13: ='Endow&Gift Input'!F4 -> 0 | F13: ='Endow&Gift Input'!G4 -> 0 | G13: ='Endow&Gift Input'!H4 -> 0 | H13: ='Endow&Gift Input'!I4 -> 0 | I13: ='Endow&Gift Input'!J4 -> 0 | J13: ='Endow&Gift Input'!K4 -> 0 | K13: ='Endow&Gift Input'!L4 -> 0 | L13: ='Endow&Gift Input'!M4 -> 0 | M13: ='Endow&Gift Input'!N4 -> 0 | N13: ='Endow&Gift Input'!O4 -> 0 | O13: ='Endow&Gift Input'!P4 -> 0 | P13: ='Endow&Gift Input'!Q4 -> 0 | Q13: ='Endow&Gift Input'!R4 -> 0 | R13: ='Endow&Gift Input'!S4 -> 0 | S13: ='Endow&Gift Input'!T4 -> 0 | T13: ='Endow&Gift Input'!U4 -> 0 | U13: ='Endow&Gift Input'!V4 -> 0 | V13: ='Endow&Gift Input'!W4 -> 0 | W13: ='Endow&Gift Input'!X4 -> 0 | X13: ='Endow&Gift Input'!Y4 -> 0 | Y13: ='Endow&Gift Input'!Z4 -> 0 | Z13: ='Endow&Gift Input'!AA4 -> 0 | AA13: ='Endow&Gift Input'!AB4 -> 0 | AB13: ='Endow&Gift Input'!AC4 -> 0 | AC13: ='Endow&Gift Input'!AD4 -> 0 | AD13: ='Endow&Gift Input'!AE4 -> 0 | AE13: ='Endow&Gift Input'!AF4 -> 0 | AF13: ='Endow&Gift Input'!AG4 -> 0 | AG13: ='Endow&Gift Input'!AH4 -> 0 | AH13: ='Endow&Gift Input'!AI4 -> 0 | AI13: ='Endow&Gift Input'!AJ4 -> 0 | AJ13: ='Endow&Gift Input'!AK4 -> 0
A14: Gift Income | B14: ='Endow&Gift Input'!C5 -> 0 | C14: ='Endow&Gift Input'!D5 -> 0 | D14: ='Endow&Gift Input'!E5 -> 0 | E14: ='Endow&Gift Input'!F5 -> 0 | F14: ='Endow&Gift Input'!G5 -> 0 | G14: ='Endow&Gift Input'!H5 -> 0 | H14: ='Endow&Gift Input'!I5 -> 0 | I14: ='Endow&Gift Input'!J5 -> 0 | J14: ='Endow&Gift Input'!K5 -> 0 | K14: ='Endow&Gift Input'!L5 -> 0 | L14: ='Endow&Gift Input'!M5 -> 0 | M14: ='Endow&Gift Input'!N5 -> 0 | N14: ='Endow&Gift Input'!O5 -> 0 | O14: ='Endow&Gift Input'!P5 -> 0 | P14: ='Endow&Gift Input'!Q5 -> 0 | Q14: ='Endow&Gift Input'!R5 -> 0 | R14: ='Endow&Gift Input'!S5 -> 0 | S14: ='Endow&Gift Input'!T5 -> 0 | T14: ='Endow&Gift Input'!U5 -> 0 | U14: ='Endow&Gift Input'!V5 -> 0 | V14: ='Endow&Gift Input'!W5 -> 0 | W14: ='Endow&Gift Input'!X5 -> 0 | X14: ='Endow&Gift Input'!Y5 -> 0 | Y14: ='Endow&Gift Input'!Z5 -> 0 | Z14: ='Endow&Gift Input'!AA5 -> 0 | AA14: ='Endow&Gift Input'!AB5 -> 0 | AB14: ='Endow&Gift Input'!AC5 -> 0 | AC14: ='Endow&Gift Input'!AD5 -> 0 | AD14: ='Endow&Gift Input'!AE5 -> 0 | AE14: ='Endow&Gift Input'!AF5 -> 0 | AF14: ='Endow&Gift Input'!AG5 -> 0 | AG14: ='Endow&Gift Input'!AH5 -> 0 | AH14: ='Endow&Gift Input'!AI5 -> 0 | AI14: ='Endow&Gift Input'!AJ5 -> 0 | AJ14: ='Endow&Gift Input'!AK5 -> 0
A15: Other Revenue | B15: ='Endow&Gift Input'!C6 -> 0 | C15: ='Endow&Gift Input'!D6 -> 0 | D15: ='Endow&Gift Input'!E6 -> 0 | E15: ='Endow&Gift Input'!F6 -> 0 | F15: ='Endow&Gift Input'!G6 -> 0 | G15: ='Endow&Gift Input'!H6 -> 0 | H15: ='Endow&Gift Input'!I6 -> 0 | I15: ='Endow&Gift Input'!J6 -> 0 | J15: ='Endow&Gift Input'!K6 -> 0 | K15: ='Endow&Gift Input'!L6 -> 0 | L15: ='Endow&Gift Input'!M6 -> 0 | M15: ='Endow&Gift Input'!N6 -> 0 | N15: ='Endow&Gift Input'!O6 -> 0 | O15: ='Endow&Gift Input'!P6 -> 0 | P15: ='Endow&Gift Input'!Q6 -> 0 | Q15: ='Endow&Gift Input'!R6 -> 0 | R15: ='Endow&Gift Input'!S6 -> 0 | S15: ='Endow&Gift Input'!T6 -> 0 | T15: ='Endow&Gift Input'!U6 -> 0 | U15: ='Endow&Gift Input'!V6 -> 0 | V15: ='Endow&Gift Input'!W6 -> 0 | W15: ='Endow&Gift Input'!X6 -> 0 | X15: ='Endow&Gift Input'!Y6 -> 0 | Y15: ='Endow&Gift Input'!Z6 -> 0 | Z15: ='Endow&Gift Input'!AA6 -> 0 | AA15: ='Endow&Gift Input'!AB6 -> 0 | AB15: ='Endow&Gift Input'!AC6 -> 0 | AC15: ='Endow&Gift Input'!AD6 -> 0 | AD15: ='Endow&Gift Input'!AE6 -> 0 | AE15: ='Endow&Gift Input'!AF6 -> 0 | AF15: ='Endow&Gift Input'!AG6 -> 0 | AG15: ='Endow&Gift Input'!AH6 -> 0 | AH15: ='Endow&Gift Input'!AI6 -> 0 | AI15: ='Endow&Gift Input'!AJ6 -> 0 | AJ15: ='Endow&Gift Input'!AK6 -> 0
A16: Total Revenue | B16: =SUM(B11:B15) -> 0 | C16: 0 | D16: 0 | E16: 0 | F16: 0 | G16: 0 | H16: 0 | I16: 0 | J16: 0 | K16: 0 | L16: 0 | M16: 0 | N16: 0 | O16: 0 | P16: 0 | Q16: 0 | R16: 0 | S16: 0 | T16: 0 | U16: 0 | V16: 0 | W16: 0 | X16: 0 | Y16: 0 | Z16: 0 | AA16: 0 | AB16: 0 | AC16: 0 | AD16: 0 | AE16: 0 | AF16: 0 | AG16: 0 | AH16: 0 | AI16: 0 | AJ16: 0
A18: Expense
A19: Faculty Salaries | B19: ='Expense Input'!C6 -> 0 | C19: ='Expense Input'!D6 -> 0 | D19: ='Expense Input'!E6 -> 0 | E19: ='Expense Input'!F6 -> 0 | F19: ='Expense Input'!G6 -> 0 | G19: ='Expense Input'!H6 -> 0 | H19: ='Expense Input'!I6 -> 0 | I19: ='Expense Input'!J6 -> 0 | J19: ='Expense Input'!K6 -> 0 | K19: ='Expense Input'!L6 -> 0 | L19: ='Expense Input'!M6 -> 0 | M19: ='Expense Input'!N6 -> 0 | N19: ='Expense Input'!O6 -> 0 | O19: ='Expense Input'!P6 -> 0 | P19: ='Expense Input'!Q6 -> 0 | Q19: ='Expense Input'!R6 -> 0 | R19: ='Expense Input'!S6 -> 0 | S19: ='Expense Input'!T6 -> 0 | T19: ='Expense Input'!U6 -> 0 | U19: ='Expense Input'!V6 -> 0 | V19: ='Expense Input'!W6 -> 0 | W19: ='Expense Input'!X6 -> 0 | X19: ='Expense Input'!Y6 -> 0 | Y19: ='Expense Input'!Z6 -> 0 | Z19: ='Expense Input'!AA6 -> 0 | AA19: ='Expense Input'!AB6 -> 0 | AB19: ='Expense Input'!AC6 -> 0 | AC19: ='Expense Input'!AD6 -> 0 | AD19: ='Expense Input'!AE6 -> 0 | AE19: ='Expense Input'!AF6 -> 0 | AF19: ='Expense Input'!AG6 -> 0 | AG19: ='Expense Input'!AH6 -> 0 | AH19: ='Expense Input'!AI6 -> 0 | AI19: ='Expense Input'!AJ6 -> 0 | AJ19: ='Expense Input'!AK6 -> 0
A20: Adjunct faculty | B20: ='Expense Input'!C7 -> 0 | C20: ='Expense Input'!D7 -> 0 | D20: ='Expense Input'!E7 -> 0 | E20: ='Expense Input'!F7 -> 0 | F20: ='Expense Input'!G7 -> 0 | G20: ='Expense Input'!H7 -> 0 | H20: ='Expense Input'!I7 -> 0 | I20: ='Expense Input'!J7 -> 0 | J20: ='Expense Input'!K7 -> 0 | K20: ='Expense Input'!L7 -> 0 | L20: ='Expense Input'!M7 -> 0 | M20: ='Expense Input'!N7 -> 0 | N20: ='Expense Input'!O7 -> 0 | O20: ='Expense Input'!P7 -> 0 | P20: ='Expense Input'!Q7 -> 0 | Q20: ='Expense Input'!R7 -> 0 | R20: ='Expense Input'!S7 -> 0 | S20: ='Expense Input'!T7 -> 0 | T20: ='Expense Input'!U7 -> 0 | U20: ='Expense Input'!V7 -> 0 | V20: ='Expense Input'!W7 -> 0 | W20: ='Expense Input'!X7 -> 0 | X20: ='Expense Input'!Y7 -> 0 | Y20: ='Expense Input'!Z7 -> 0 | Z20: ='Expense Input'!AA7 -> 0 | AA20: ='Expense Input'!AB7 -> 0 | AB20: ='Expense Input'!AC7 -> 0 | AC20: ='Expense Input'!AD7 -> 0 | AD20: ='Expense Input'!AE7 -> 0 | AE20: ='Expense Input'!AF7 -> 0 | AF20: ='Expense Input'!AG7 -> 0 | AG20: ='Expense Input'!AH7 -> 0 | AH20: ='Expense Input'!AI7 -> 0 | AI20: ='Expense Input'!AJ7 -> 0 | AJ20: ='Expense Input'!AK7 -> 0
A21: Staff Salaries | B21: ='Expense Input'!C8 -> 0 | C21: ='Expense Input'!D8 -> 0 | D21: ='Expense Input'!E8 -> 0 | E21: ='Expense Input'!F8 -> 0 | F21: ='Expense Input'!G8 -> 0 | G21: ='Expense Input'!H8 -> 0 | H21: ='Expense Input'!I8 -> 0 | I21: ='Expense Input'!J8 -> 0 | J21: ='Expense Input'!K8 -> 0 | K21: ='Expense Input'!L8 -> 0 | L21: ='Expense Input'!M8 -> 0 | M21: ='Expense Input'!N8 -> 0 | N21: ='Expense Input'!O8 -> 0 | O21: ='Expense Input'!P8 -> 0 | P21: ='Expense Input'!Q8 -> 0 | Q21: ='Expense Input'!R8 -> 0 | R21: ='Expense Input'!S8 -> 0 | S21: ='Expense Input'!T8 -> 0 | T21: ='Expense Input'!U8 -> 0 | U21: ='Expense Input'!V8 -> 0 | V21: ='Expense Input'!W8 -> 0 | W21: ='Expense Input'!X8 -> 0 | X21: ='Expense Input'!Y8 -> 0 | Y21: ='Expense Input'!Z8 -> 0 | Z21: ='Expense Input'!AA8 -> 0 | AA21: ='Expense Input'!AB8 -> 0 | AB21: ='Expense Input'!AC8 -> 0 | AC21: ='Expense Input'!AD8 -> 0 | AD21: ='Expense Input'!AE8 -> 0 | AE21: ='Expense Input'!AF8 -> 0 | AF21: ='Expense Input'!AG8 -> 0 | AG21: ='Expense Input'!AH8 -> 0 | AH21: ='Expense Input'!AI8 -> 0 | AI21: ='Expense Input'!AJ8 -> 0 | AJ21: ='Expense Input'!AK8 -> 0
A22: Course development stipends | B22: ='Expense Input'!C9 -> 0 | C22: ='Expense Input'!D9 -> 0 | D22: ='Expense Input'!E9 -> 0 | E22: ='Expense Input'!F9 -> 0 | F22: ='Expense Input'!G9 -> 0 | G22: ='Expense Input'!H9 -> 0 | H22: ='Expense Input'!I9 -> 0 | I22: ='Expense Input'!J9 -> 0 | J22: ='Expense Input'!K9 -> 0 | K22: ='Expense Input'!L9 -> 0 | L22: ='Expense Input'!M9 -> 0 | M22: ='Expense Input'!N9 -> 0 | N22: ='Expense Input'!O9 -> 0 | O22: ='Expense Input'!P9 -> 0 | P22: ='Expense Input'!Q9 -> 0 | Q22: ='Expense Input'!R9 -> 0 | R22: ='Expense Input'!S9 -> 0 | S22: ='Expense Input'!T9 -> 0 | T22: ='Expense Input'!U9 -> 0 | U22: ='Expense Input'!V9 -> 0 | V22: ='Expense Input'!W9 -> 0 | W22: ='Expense Input'!X9 -> 0 | X22: ='Expense Input'!Y9 -> 0 | Y22: ='Expense Input'!Z9 -> 0 | Z22: ='Expense Input'!AA9 -> 0 | AA22: ='Expense Input'!AB9 -> 0 | AB22: ='Expense Input'!AC9 -> 0 | AC22: ='Expense Input'!AD9 -> 0 | AD22: ='Expense Input'!AE9 -> 0 | AE22: ='Expense Input'!AF9 -> 0 | AF22: ='Expense Input'!AG9 -> 0 | AG22: ='Expense Input'!AH9 -> 0 | AH22: ='Expense Input'!AI9 -> 0 | AI22: ='Expense Input'!AJ9 -> 0 | AJ22: ='Expense Input'!AK9 -> 0
A23: Other Salaries | B23: ='Expense Input'!C10+'Expense Input'!C11 -> 0 | C23: ='Expense Input'!D10+'Expense Input'!D11 -> 0 | D23: ='Expense Input'!E10+'Expense Input'!E11 -> 0 | E23: ='Expense Input'!F10+'Expense Input'!F11 -> 0 | F23: ='Expense Input'!G10+'Expense Input'!G11 -> 0 | G23: ='Expense Input'!H10+'Expense Input'!H11 -> 0 | H23: ='Expense Input'!I10+'Expense Input'!I11 -> 0 | I23: ='Expense Input'!J10+'Expense Input'!J11 -> 0 | J23: ='Expense Input'!K10+'Expense Input'!K11 -> 0 | K23: ='Expense Input'!L10+'Expense Input'!L11 -> 0 | L23: ='Expense Input'!M10+'Expense Input'!M11 -> 0 | M23: ='Expense Input'!N10+'Expense Input'!N11 -> 0 | N23: ='Expense Input'!O10+'Expense Input'!O11 -> 0 | O23: ='Expense Input'!P10+'Expense Input'!P11 -> 0 | P23: ='Expense Input'!Q10+'Expense Input'!Q11 -> 0 | Q23: ='Expense Input'!R10+'Expense Input'!R11 -> 0 | R23: ='Expense Input'!S10+'Expense Input'!S11 -> 0 | S23: ='Expense Input'!T10+'Expense Input'!T11 -> 0 | T23: ='Expense Input'!U10+'Expense Input'!U11 -> 0 | U23: ='Expense Input'!V10+'Expense Input'!V11 -> 0 | V23: ='Expense Input'!W10+'Expense Input'!W11 -> 0 | W23: ='Expense Input'!X10+'Expense Input'!X11 -> 0 | X23: ='Expense Input'!Y10+'Expense Input'!Y11 -> 0 | Y23: ='Expense Input'!Z10+'Expense Input'!Z11 -> 0 | Z23: ='Expense Input'!AA10+'Expense Input'!AA11 -> 0 | AA23: ='Expense Input'!AB10+'Expense Input'!AB11 -> 0 | AB23: ='Expense Input'!AC10+'Expense Input'!AC11 -> 0 | AC23: ='Expense Input'!AD10+'Expense Input'!AD11 -> 0 | AD23: ='Expense Input'!AE10+'Expense Input'!AE11 -> 0 | AE23: ='Expense Input'!AF10+'Expense Input'!AF11 -> 0 | AF23: ='Expense Input'!AG10+'Expense Input'!AG11 -> 0 | AG23: ='Expense Input'!AH10+'Expense Input'!AH11 -> 0 | AH23: ='Expense Input'!AI10+'Expense Input'!AI11 -> 0 | AI23: ='Expense Input'!AJ10+'Expense Input'!AJ11 -> 0 | AJ23: ='Expense Input'!AK10+'Expense Input'!AK11 -> 0
A24: Total Salaries | B24: ='Expense Input'!C13 -> 0 | C24: ='Expense Input'!D13 -> 0 | D24: ='Expense Input'!E13 -> 0 | E24: ='Expense Input'!F13 -> 0 | F24: ='Expense Input'!G13 -> 0 | G24: ='Expense Input'!H13 -> 0 | H24: ='Expense Input'!I13 -> 0 | I24: ='Expense Input'!J13 -> 0 | J24: ='Expense Input'!K13 -> 0 | K24: ='Expense Input'!L13 -> 0 | L24: ='Expense Input'!M13 -> 0 | M24: ='Expense Input'!N13 -> 0 | N24: ='Expense Input'!O13 -> 0 | O24: ='Expense Input'!P13 -> 0 | P24: ='Expense Input'!Q13 -> 0 | Q24: ='Expense Input'!R13 -> 0 | R24: ='Expense Input'!S13 -> 0 | S24: ='Expense Input'!T13 -> 0 | T24: ='Expense Input'!U13 -> 0 | U24: ='Expense Input'!V13 -> 0 | V24: ='Expense Input'!W13 -> 0 | W24: ='Expense Input'!X13 -> 0 | X24: ='Expense Input'!Y13 -> 0 | Y24: ='Expense Input'!Z13 -> 0 | Z24: ='Expense Input'!AA13 -> 0 | AA24: ='Expense Input'!AB13 -> 0 | AB24: ='Expense Input'!AC13 -> 0 | AC24: ='Expense Input'!AD13 -> 0 | AD24: ='Expense Input'!AE13 -> 0 | AE24: ='Expense Input'!AF13 -> 0 | AF24: ='Expense Input'!AG13 -> 0 | AG24: ='Expense Input'!AH13 -> 0 | AH24: ='Expense Input'!AI13 -> 0 | AI24: ='Expense Input'!AJ13 -> 0 | AJ24: ='Expense Input'!AK13 -> 0
A26: Benefits | B26: ='Expense Input'!C14 -> 0 | C26: ='Expense Input'!D14 -> 0 | D26: ='Expense Input'!E14 -> 0 | E26: ='Expense Input'!F14 -> 0 | F26: ='Expense Input'!G14 -> 0 | G26: ='Expense Input'!H14 -> 0 | H26: ='Expense Input'!I14 -> 0 | I26: ='Expense Input'!J14 -> 0 | J26: ='Expense Input'!K14 -> 0 | K26: ='Expense Input'!L14 -> 0 | L26: ='Expense Input'!M14 -> 0 | M26: ='Expense Input'!N14 -> 0 | N26: ='Expense Input'!O14 -> 0 | O26: ='Expense Input'!P14 -> 0 | P26: ='Expense Input'!Q14 -> 0 | Q26: ='Expense Input'!R14 -> 0 | R26: ='Expense Input'!S14 -> 0 | S26: ='Expense Input'!T14 -> 0 | T26: ='Expense Input'!U14 -> 0 | U26: ='Expense Input'!V14 -> 0 | V26: ='Expense Input'!W14 -> 0 | W26: ='Expense Input'!X14 -> 0 | X26: ='Expense Input'!Y14 -> 0 | Y26: ='Expense Input'!Z14 -> 0 | Z26: ='Expense Input'!AA14 -> 0 | AA26: ='Expense Input'!AB14 -> 0 | AB26: ='Expense Input'!AC14 -> 0 | AC26: ='Expense Input'!AD14 -> 0 | AD26: ='Expense Input'!AE14 -> 0 | AE26: ='Expense Input'!AF14 -> 0 | AF26: ='Expense Input'!AG14 -> 0 | AG26: ='Expense Input'!AH14 -> 0 | AH26: ='Expense Input'!AI14 -> 0 | AI26: ='Expense Input'!AJ14 -> 0 | AJ26: ='Expense Input'!AK14 -> 0
A27: Non Capital Expenses | B27: ='Expense Input'!C32 -> 25000 | C27: ='Expense Input'!D32 -> 0 | D27: ='Expense Input'!E32 -> 0 | E27: ='Expense Input'!F32 -> 0 | F27: ='Expense Input'!G32 -> 0 | G27: ='Expense Input'!H32 -> 0 | H27: ='Expense Input'!I32 -> 0 | I27: ='Expense Input'!J32 -> 25000 | J27: ='Expense Input'!K32 -> 0 | K27: ='Expense Input'!L32 -> 0 | L27: ='Expense Input'!M32 -> 0 | M27: ='Expense Input'!N32 -> 0 | N27: ='Expense Input'!O32 -> 0 | O27: ='Expense Input'!P32 -> 0 | P27: ='Expense Input'!Q32 -> 25000 | Q27: ='Expense Input'!R32 -> 0 | R27: ='Expense Input'!S32 -> 0 | S27: ='Expense Input'!T32 -> 0 | T27: ='Expense Input'!U32 -> 0 | U27: ='Expense Input'!V32 -> 0 | V27: ='Expense Input'!W32 -> 0 | W27: ='Expense Input'!X32 -> 25000 | X27: ='Expense Input'!Y32 -> 0 | Y27: ='Expense Input'!Z32 -> 0 | Z27: ='Expense Input'!AA32 -> 0 | AA27: ='Expense Input'!AB32 -> 0 | AB27: ='Expense Input'!AC32 -> 0 | AC27: ='Expense Input'!AD32 -> 0 | AD27: ='Expense Input'!AE32 -> 25000 | AE27: ='Expense Input'!AF32 -> 0 | AF27: ='Expense Input'!AG32 -> 0 | AG27: ='Expense Input'!AH32 -> 0 | AH27: ='Expense Input'!AI32 -> 0 | AI27: ='Expense Input'!AJ32 -> 0 | AJ27: ='Expense Input'!AK32 -> 0
A28: Capital Expenditures | B28: ='Expense Input'!C33 -> 0 | C28: ='Expense Input'!D33 -> 0 | D28: ='Expense Input'!E33 -> 0 | E28: ='Expense Input'!F33 -> 0 | F28: ='Expense Input'!G33 -> 0 | G28: ='Expense Input'!H33 -> 0 | H28: ='Expense Input'!I33 -> 0 | I28: ='Expense Input'!J33 -> 0 | J28: ='Expense Input'!K33 -> 0 | K28: ='Expense Input'!L33 -> 0 | L28: ='Expense Input'!M33 -> 0 | M28: ='Expense Input'!N33 -> 0 | N28: ='Expense Input'!O33 -> 0 | O28: ='Expense Input'!P33 -> 0 | P28: ='Expense Input'!Q33 -> 0 | Q28: ='Expense Input'!R33 -> 0 | R28: ='Expense Input'!S33 -> 0 | S28: ='Expense Input'!T33 -> 0 | T28: ='Expense Input'!U33 -> 0 | U28: ='Expense Input'!V33 -> 0 | V28: ='Expense Input'!W33 -> 0 | W28: ='Expense Input'!X33 -> 0 | X28: ='Expense Input'!Y33 -> 0 | Y28: ='Expense Input'!Z33 -> 0 | Z28: ='Expense Input'!AA33 -> 0 | AA28: ='Expense Input'!AB33 -> 0 | AB28: ='Expense Input'!AC33 -> 0 | AC28: ='Expense Input'!AD33 -> 0 | AD28: ='Expense Input'!AE33 -> 0 | AE28: ='Expense Input'!AF33 -> 0 | AF28: ='Expense Input'!AG33 -> 0 | AG28: ='Expense Input'!AH33 -> 0 | AH28: ='Expense Input'!AI33 -> 0 | AI28: ='Expense Input'!AJ33 -> 0 | AJ28: ='Expense Input'!AK33 -> 0
A29: Other Initial Investment | B29: =initial_investment -> 0
A30: Total Expense | B30: =SUM(B20:B28) -> 25000 | C30: 0 | D30: 0 | E30: 0 | F30: 0 | G30: 0 | H30: 0 | I30: 25000 | J30: 0 | K30: 0 | L30: 0 | M30: 0 | N30: 0 | O30: 0 | P30: 25000 | Q30: 0 | R30: 0 | S30: 0 | T30: 0 | U30: 0 | V30: 0 | W30: 25000 | X30: 0 | Y30: 0 | Z30: 0 | AA30: 0 | AB30: 0 | AC30: 0 | AD30: 25000 | AE30: 0 | AF30: 0 | AG30: 0 | AH30: 0 | AI30: 0 | AJ30: 0
A32: Transfers | B32: ='Expense Input'!C37 -> 0 | C32: ='Expense Input'!D37 -> 0 | D32: ='Expense Input'!E37 -> 0 | E32: ='Expense Input'!F37 -> 0 | F32: ='Expense Input'!G37 -> 0 | G32: ='Expense Input'!H37 -> 0 | H32: ='Expense Input'!I37 -> 0 | I32: ='Expense Input'!J37 -> 0 | J32: ='Expense Input'!K37 -> 0 | K32: ='Expense Input'!L37 -> 0 | L32: ='Expense Input'!M37 -> 0 | M32: ='Expense Input'!N37 -> 0 | N32: ='Expense Input'!O37 -> 0 | O32: ='Expense Input'!P37 -> 0 | P32: ='Expense Input'!Q37 -> 0 | Q32: ='Expense Input'!R37 -> 0 | R32: ='Expense Input'!S37 -> 0 | S32: ='Expense Input'!T37 -> 0 | T32: ='Expense Input'!U37 -> 0 | U32: ='Expense Input'!V37 -> 0 | V32: ='Expense Input'!W37 -> 0 | W32: ='Expense Input'!X37 -> 0 | X32: ='Expense Input'!Y37 -> 0 | Y32: ='Expense Input'!Z37 -> 0 | Z32: ='Expense Input'!AA37 -> 0 | AA32: ='Expense Input'!AB37 -> 0 | AB32: ='Expense Input'!AC37 -> 0 | AC32: ='Expense Input'!AD37 -> 0 | AD32: ='Expense Input'!AE37 -> 0 | AE32: ='Expense Input'!AF37 -> 0 | AF32: ='Expense Input'!AG37 -> 0 | AG32: ='Expense Input'!AH37 -> 0 | AH32: ='Expense Input'!AI37 -> 0 | AI32: ='Expense Input'!AJ37 -> 0 | AJ32: ='Expense Input'!AK37 -> 0
A34: Contribution Margin | B34: =B16-B30-B32 -> -25000 | C34: 0 | D34: 0 | E34: 0 | F34: 0 | G34: 0 | H34: 0 | I34: -25000 | J34: 0 | K34: 0 | L34: 0 | M34: 0 | N34: 0 | O34: 0 | P34: -25000 | Q34: 0 | R34: 0 | S34: 0 | T34: 0 | U34: 0 | V34: 0 | W34: -25000 | X34: 0 | Y34: 0 | Z34: 0 | AA34: 0 | AB34: 0 | AC34: 0 | AD34: -25000 | AE34: 0 | AF34: 0 | AG34: 0 | AH34: 0 | AI34: 0 | AJ34: 0
A36: Administrative Overhead | B36: ='Expense Input'!C39 -> 0 | C36: ='Expense Input'!D39 -> 0 | D36: ='Expense Input'!E39 -> 0 | E36: ='Expense Input'!F39 -> 0 | F36: ='Expense Input'!G39 -> 0 | G36: ='Expense Input'!H39 -> 0 | H36: ='Expense Input'!I39 -> 0 | I36: ='Expense Input'!J39 -> 0 | J36: ='Expense Input'!K39 -> 0 | K36: ='Expense Input'!L39 -> 0 | L36: ='Expense Input'!M39 -> 0 | M36: ='Expense Input'!N39 -> 0 | N36: ='Expense Input'!O39 -> 0 | O36: ='Expense Input'!P39 -> 0 | P36: ='Expense Input'!Q39 -> 0 | Q36: ='Expense Input'!R39 -> 0 | R36: ='Expense Input'!S39 -> 0 | S36: ='Expense Input'!T39 -> 0 | T36: ='Expense Input'!U39 -> 0 | U36: ='Expense Input'!V39 -> 0 | V36: ='Expense Input'!W39 -> 0 | W36: ='Expense Input'!X39 -> 0 | X36: ='Expense Input'!Y39 -> 0 | Y36: ='Expense Input'!Z39 -> 0 | Z36: ='Expense Input'!AA39 -> 0 | AA36: ='Expense Input'!AB39 -> 0 | AB36: ='Expense Input'!AC39 -> 0 | AC36: ='Expense Input'!AD39 -> 0 | AD36: ='Expense Input'!AE39 -> 0 | AE36: ='Expense Input'!AF39 -> 0 | AF36: ='Expense Input'!AG39 -> 0 | AG36: ='Expense Input'!AH39 -> 0 | AH36: ='Expense Input'!AI39 -> 0 | AI36: ='Expense Input'!AJ39 -> 0 | AJ36: ='Expense Input'!AK39 -> 0
A37: Total Overhead | B37: =SUM(B36:B36) -> 0 | C37: 0 | D37: 0 | E37: 0 | F37: 0 | G37: 0 | H37: 0 | I37: 0 | J37: 0 | K37: 0 | L37: 0 | M37: 0 | N37: 0 | O37: 0 | P37: 0 | Q37: 0 | R37: 0 | S37: 0 | T37: 0 | U37: 0 | V37: 0 | W37: 0 | X37: 0 | Y37: 0 | Z37: 0 | AA37: 0 | AB37: 0 | AC37: 0 | AD37: 0 | AE37: 0 | AF37: 0 | AG37: 0 | AH37: 0 | AI37: 0 | AJ37: 0
A39: Net Margin | B39: =B34-B37 -> -25000 | C39: 0 | D39: 0 | E39: 0 | F39: 0 | G39: 0 | H39: 0 | I39: -25000 | J39: 0 | K39: 0 | L39: 0 | M39: 0 | N39: 0 | O39: 0 | P39: -25000 | Q39: 0 | R39: 0 | S39: 0 | T39: 0 | U39: 0 | V39: 0 | W39: -25000 | X39: 0 | Y39: 0 | Z39: 0 | AA39: 0 | AB39: 0 | AC39: 0 | AD39: -25000 | AE39: 0 | AF39: 0 | AG39: 0 | AH39: 0 | AI39: 0 | AJ39: 0
A41: Cash Flow*
A42: Accumulated Cash Flow
A43: Payback
A46: Reallocated faculty and staff
A47: Expense
A48: Faculty Salaries to be reallocated | B48: ='Expense Input'!C48 -> 0 | C48: ='Expense Input'!D48 -> 0 | D48: ='Expense Input'!E48 -> 0 | E48: ='Expense Input'!F48 -> 0 | F48: ='Expense Input'!G48 -> 0 | G48: ='Expense Input'!H48 -> 0 | H48: ='Expense Input'!I48 -> 0 | I48: ='Expense Input'!J48 -> 0 | J48: ='Expense Input'!K48 -> 0 | K48: ='Expense Input'!L48 -> 0 | L48: ='Expense Input'!M48 -> 0 | M48: ='Expense Input'!N48 -> 0 | N48: ='Expense Input'!O48 -> 0 | O48: ='Expense Input'!P48 -> 0 | P48: ='Expense Input'!Q48 -> 0 | Q48: ='Expense Input'!R48 -> 0 | R48: ='Expense Input'!S48 -> 0 | S48: ='Expense Input'!T48 -> 0 | T48: ='Expense Input'!U48 -> 0 | U48: ='Expense Input'!V48 -> 0 | V48: ='Expense Input'!W48 -> 0 | W48: ='Expense Input'!X48 -> 0 | X48: ='Expense Input'!Y48 -> 0 | Y48: ='Expense Input'!Z48 -> 0 | Z48: ='Expense Input'!AA48 -> 0 | AA48: ='Expense Input'!AB48 -> 0 | AB48: ='Expense Input'!AC48 -> 0 | AC48: ='Expense Input'!AD48 -> 0 | AD48: ='Expense Input'!AE48 -> 0 | AE48: ='Expense Input'!AF48 -> 0 | AF48: ='Expense Input'!AG48 -> 0 | AG48: ='Expense Input'!AH48 -> 0 | AH48: ='Expense Input'!AI48 -> 0 | AI48: ='Expense Input'!AJ48 -> 0 | AJ48: ='Expense Input'!AK48 -> 0
A49: Adjunct faculty to be reallocated | B49: ='Expense Input'!C49 -> 0 | C49: ='Expense Input'!D49 -> 0 | D49: ='Expense Input'!E49 -> 0 | E49: ='Expense Input'!F49 -> 0 | F49: ='Expense Input'!G49 -> 0 | G49: ='Expense Input'!H49 -> 0 | H49: ='Expense Input'!I49 -> 0 | I49: ='Expense Input'!J49 -> 0 | J49: ='Expense Input'!K49 -> 0 | K49: ='Expense Input'!L49 -> 0 | L49: ='Expense Input'!M49 -> 0 | M49: ='Expense Input'!N49 -> 0 | N49: ='Expense Input'!O49 -> 0 | O49: ='Expense Input'!P49 -> 0 | P49: ='Expense Input'!Q49 -> 0 | Q49: ='Expense Input'!R49 -> 0 | R49: ='Expense Input'!S49 -> 0 | S49: ='Expense Input'!T49 -> 0 | T49: ='Expense Input'!U49 -> 0 | U49: ='Expense Input'!V49 -> 0 | V49: ='Expense Input'!W49 -> 0 | W49: ='Expense Input'!X49 -> 0 | X49: ='Expense Input'!Y49 -> 0 | Y49: ='Expense Input'!Z49 -> 0 | Z49: ='Expense Input'!AA49 -> 0 | AA49: ='Expense Input'!AB49 -> 0 | AB49: ='Expense Input'!AC49 -> 0 | AC49: ='Expense Input'!AD49 -> 0 | AD49: ='Expense Input'!AE49 -> 0 | AE49: ='Expense Input'!AF49 -> 0 | AF49: ='Expense Input'!AG49 -> 0 | AG49: ='Expense Input'!AH49 -> 0 | AH49: ='Expense Input'!AI49 -> 0 | AI49: ='Expense Input'!AJ49 -> 0 | AJ49: ='Expense Input'!AK49 -> 0
A50: Staff to be reallocated | B50: ='Expense Input'!C50 -> 0 | C50: ='Expense Input'!D50 -> 0 | D50: ='Expense Input'!E50 -> 0 | E50: ='Expense Input'!F50 -> 0 | F50: ='Expense Input'!G50 -> 0 | G50: ='Expense Input'!H50 -> 0 | H50: ='Expense Input'!I50 -> 0 | I50: ='Expense Input'!J50 -> 0 | J50: ='Expense Input'!K50 -> 0 | K50: ='Expense Input'!L50 -> 0 | L50: ='Expense Input'!M50 -> 0 | M50: ='Expense Input'!N50 -> 0 | N50: ='Expense Input'!O50 -> 0 | O50: ='Expense Input'!P50 -> 0 | P50: ='Expense Input'!Q50 -> 0 | Q50: ='Expense Input'!R50 -> 0 | R50: ='Expense Input'!S50 -> 0 | S50: ='Expense Input'!T50 -> 0 | T50: ='Expense Input'!U50 -> 0 | U50: ='Expense Input'!V50 -> 0 | V50: ='Expense Input'!W50 -> 0 | W50: ='Expense Input'!X50 -> 0 | X50: ='Expense Input'!Y50 -> 0 | Y50: ='Expense Input'!Z50 -> 0 | Z50: ='Expense Input'!AA50 -> 0 | AA50: ='Expense Input'!AB50 -> 0 | AB50: ='Expense Input'!AC50 -> 0 | AC50: ='Expense Input'!AD50 -> 0 | AD50: ='Expense Input'!AE50 -> 0 | AE50: ='Expense Input'!AF50 -> 0 | AF50: ='Expense Input'!AG50 -> 0 | AG50: ='Expense Input'!AH50 -> 0 | AH50: ='Expense Input'!AI50 -> 0 | AI50: ='Expense Input'!AJ50 -> 0 | AJ50: ='Expense Input'!AK50 -> 0
A51: Total Reallocated Salaries | B51: =SUM(B48:B50) -> 0 | C51: =SUM(C48:C50) -> 0 | D51: 0 | E51: 0 | F51: 0 | G51: 0 | H51: 0 | I51: 0 | J51: 0 | K51: 0 | L51: 0 | M51: 0 | N51: 0 | O51: 0 | P51: 0 | Q51: 0 | R51: 0 | S51: 0 | T51: 0 | U51: 0 | V51: 0 | W51: 0 | X51: 0 | Y51: 0 | Z51: 0 | AA51: 0 | AB51: 0 | AC51: 0 | AD51: 0 | AE51: 0 | AF51: 0 | AG51: 0 | AH51: 0 | AI51: 0 | AJ51: 0
A53: Benefits | B53: ='Expense Input'!C53 -> 0 | C53: ='Expense Input'!D53 -> 0 | D53: ='Expense Input'!E53 -> 0 | E53: ='Expense Input'!F53 -> 0 | F53: ='Expense Input'!G53 -> 0 | G53: ='Expense Input'!H53 -> 0 | H53: ='Expense Input'!I53 -> 0 | I53: ='Expense Input'!J53 -> 0 | J53: ='Expense Input'!K53 -> 0 | K53: ='Expense Input'!L53 -> 0 | L53: ='Expense Input'!M53 -> 0 | M53: ='Expense Input'!N53 -> 0 | N53: ='Expense Input'!O53 -> 0 | O53: ='Expense Input'!P53 -> 0 | P53: ='Expense Input'!Q53 -> 0 | Q53: ='Expense Input'!R53 -> 0 | R53: ='Expense Input'!S53 -> 0 | S53: ='Expense Input'!T53 -> 0 | T53: ='Expense Input'!U53 -> 0 | U53: ='Expense Input'!V53 -> 0 | V53: ='Expense Input'!W53 -> 0 | W53: ='Expense Input'!X53 -> 0 | X53: ='Expense Input'!Y53 -> 0 | Y53: ='Expense Input'!Z53 -> 0 | Z53: ='Expense Input'!AA53 -> 0 | AA53: ='Expense Input'!AB53 -> 0 | AB53: ='Expense Input'!AC53 -> 0 | AC53: ='Expense Input'!AD53 -> 0 | AD53: ='Expense Input'!AE53 -> 0 | AE53: ='Expense Input'!AF53 -> 0 | AF53: ='Expense Input'!AG53 -> 0 | AG53: ='Expense Input'!AH53 -> 0 | AH53: ='Expense Input'!AI53 -> 0 | AI53: ='Expense Input'!AJ53 -> 0 | AJ53: ='Expense Input'!AK53 -> 0
A54: Total Reallocated Expenses | B54: =B53 -> 0 | C54: =C53 -> 0 | D54: 0 | E54: 0 | F54: 0 | G54: 0 | H54: 0 | I54: 0 | J54: 0 | K54: 0 | L54: 0 | M54: 0 | N54: 0 | O54: 0 | P54: 0 | Q54: 0 | R54: 0 | S54: 0 | T54: 0 | U54: 0 | V54: 0 | W54: 0 | X54: 0 | Y54: 0 | Z54: 0 | AA54: 0 | AB54: 0 | AC54: 0 | AD54: 0 | AE54: 0 | AF54: 0 | AG54: 0 | AH54: 0 | AI54: 0 | AJ54: 0
A57: Net with reallocated faculty and staff
A58: Expense
A59: Faculty Salaries | B59: =B19-B48 -> 0 | C59: =C19-C48 -> 0 | D59: 0 | E59: 0 | F59: 0 | G59: 0 | H59: 0 | I59: 0 | J59: 0 | K59: 0 | L59: 0 | M59: 0 | N59: 0 | O59: 0 | P59: 0 | Q59: 0 | R59: 0 | S59: 0 | T59: 0 | U59: 0 | V59: 0 | W59: 0 | X59: 0 | Y59: 0 | Z59: 0 | AA59: 0 | AB59: 0 | AC59: 0 | AD59: 0 | AE59: 0 | AF59: 0 | AG59: 0 | AH59: 0 | AI59: 0 | AJ59: 0
A60: Adjunct faculty | B60: =B20-B49 -> 0 | C60: =C20-C49 -> 0 | D60: 0 | E60: 0 | F60: 0 | G60: 0 | H60: 0 | I60: 0 | J60: 0 | K60: 0 | L60: 0 | M60: 0 | N60: 0 | O60: 0 | P60: 0 | Q60: 0 | R60: 0 | S60: 0 | T60: 0 | U60: 0 | V60: 0 | W60: 0 | X60: 0 | Y60: 0 | Z60: 0 | AA60: 0 | AB60: 0 | AC60: 0 | AD60: 0 | AE60: 0 | AF60: 0 | AG60: 0 | AH60: 0 | AI60: 0 | AJ60: 0
A61: Staff Salaries | B61: =B21-B50 -> 0 | C61: =C21-C50 -> 0 | D61: 0 | E61: 0 | F61: 0 | G61: 0 | H61: 0 | I61: 0 | J61: 0 | K61: 0 | L61: 0 | M61: 0 | N61: 0 | O61: 0 | P61: 0 | Q61: 0 | R61: 0 | S61: 0 | T61: 0 | U61: 0 | V61: 0 | W61: 0 | X61: 0 | Y61: 0 | Z61: 0 | AA61: 0 | AB61: 0 | AC61: 0 | AD61: 0 | AE61: 0 | AF61: 0 | AG61: 0 | AH61: 0 | AI61: 0 | AJ61: 0
A62: Course development stipends | B62: =B22 -> 0 | C62: =C22 -> 0 | D62: 0 | E62: 0 | F62: 0 | G62: 0 | H62: 0 | I62: 0 | J62: 0 | K62: 0 | L62: 0 | M62: 0 | N62: 0 | O62: 0 | P62: 0 | Q62: 0 | R62: 0 | S62: 0 | T62: 0 | U62: 0 | V62: 0 | W62: 0 | X62: 0 | Y62: 0 | Z62: 0 | AA62: 0 | AB62: 0 | AC62: 0 | AD62: 0 | AE62: 0 | AF62: 0 | AG62: 0 | AH62: 0 | AI62: 0 | AJ62: 0
A63: Other Salaries | B63: =B23 -> 0 | C63: =C23 -> 0 | D63: 0 | E63: 0 | F63: 0 | G63: 0 | H63: 0 | I63: 0 | J63: 0 | K63: 0 | L63: 0 | M63: 0 | N63: 0 | O63: 0 | P63: 0 | Q63: 0 | R63: 0 | S63: 0 | T63: 0 | U63: 0 | V63: 0 | W63: 0 | X63: 0 | Y63: 0 | Z63: 0 | AA63: 0 | AB63: 0 | AC63: 0 | AD63: 0 | AE63: 0 | AF63: 0 | AG63: 0 | AH63: 0 | AI63: 0 | AJ63: 0
A64: Total Salaries | B64: =B24+B53 -> 0 | C64: =C24+C53 -> 0 | D64: 0 | E64: 0 | F64: 0 | G64: 0 | H64: 0 | I64: 0 | J64: 0 | K64: 0 | L64: 0 | M64: 0 | N64: 0 | O64: 0 | P64: 0 | Q64: 0 | R64: 0 | S64: 0 | T64: 0 | U64: 0 | V64: 0 | W64: 0 | X64: 0 | Y64: 0 | Z64: 0 | AA64: 0 | AB64: 0 | AC64: 0 | AD64: 0 | AE64: 0 | AF64: 0 | AG64: 0 | AH64: 0 | AI64: 0 | AJ64: 0
A66: Benefits | B66: =B26-B53 -> 0 | C66: =C26-C53 -> 0 | D66: 0 | E66: 0 | F66: 0 | G66: 0 | H66: 0 | I66: 0 | J66: 0 | K66: 0 | L66: 0 | M66: 0 | N66: 0 | O66: 0 | P66: 0 | Q66: 0 | R66: 0 | S66: 0 | T66: 0 | U66: 0 | V66: 0 | W66: 0 | X66: 0 | Y66: 0 | Z66: 0 | AA66: 0 | AB66: 0 | AC66: 0 | AD66: 0 | AE66: 0 | AF66: 0 | AG66: 0 | AH66: 0 | AI66: 0 | AJ66: 0
A68: Non Capital Expenses | B68: =B27 -> 25000 | C68: 0 | D68: 0 | E68: 0 | F68: 0 | G68: 0 | H68: 0 | I68: 25000 | J68: 0 | K68: 0 | L68: 0 | M68: 0 | N68: 0 | O68: 0 | P68: 25000 | Q68: 0 | R68: 0 | S68: 0 | T68: 0 | U68: 0 | V68: 0 | W68: 25000 | X68: 0 | Y68: 0 | Z68: 0 | AA68: 0 | AB68: 0 | AC68: 0 | AD68: 25000 | AE68: 0 | AF68: 0 | AG68: 0 | AH68: 0 | AI68: 0 | AJ68: 0
A69: Capital Expenditures | B69: =B28 -> 0 | C69: 0 | D69: 0 | E69: 0 | F69: 0 | G69: 0 | H69: 0 | I69: 0 | J69: 0 | K69: 0 | L69: 0 | M69: 0 | N69: 0 | O69: 0 | P69: 0 | Q69: 0 | R69: 0 | S69: 0 | T69: 0 | U69: 0 | V69: 0 | W69: 0 | X69: 0 | Y69: 0 | Z69: 0 | AA69: 0 | AB69: 0 | AC69: 0 | AD69: 0 | AE69: 0 | AF69: 0 | AG69: 0 | AH69: 0 | AI69: 0 | AJ69: 0
A70: Total Expense | B70: =SUM(B64:B69) -> 25000 | C70: =SUM(C64:C69) -> 0 | D70: 0 | E70: 0 | F70: 0 | G70: 0 | H70: 0 | I70: 25000 | J70: 0 | K70: 0 | L70: 0 | M70: 0 | N70: 0 | O70: 0 | P70: 25000 | Q70: 0 | R70: 0 | S70: 0 | T70: 0 | U70: 0 | V70: 0 | W70: 25000 | X70: 0 | Y70: 0 | Z70: 0 | AA70: 0 | AB70: 0 | AC70: 0 | AD70: 25000 | AE70: 0 | AF70: 0 | AG70: 0 | AH70: 0 | AI70: 0 | AJ70: 0
A72: Transfers | B72: =B32 -> 0 | C72: 0 | D72: 0 | E72: 0 | F72: 0 | G72: 0 | H72: 0 | I72: 0 | J72: 0 | K72: 0 | L72: 0 | M72: 0 | N72: 0 | O72: 0 | P72: 0 | Q72: 0 | R72: 0 | S72: 0 | T72: 0 | U72: 0 | V72: 0 | W72: 0 | X72: 0 | Y72: 0 | Z72: 0 | AA72: 0 | AB72: 0 | AC72: 0 | AD72: 0 | AE72: 0 | AF72: 0 | AG72: 0 | AH72: 0 | AI72: 0 | AJ72: 0
A74: Contribution Margin | B74: =B16-B70-B72 -> -25000 | C74: 0 | D74: 0 | E74: 0 | F74: 0 | G74: 0 | H74: 0 | I74: -25000 | J74: 0 | K74: 0 | L74: 0 | M74: 0 | N74: 0 | O74: 0 | P74: -25000 | Q74: 0 | R74: 0 | S74: 0 | T74: 0 | U74: 0 | V74: 0 | W74: -25000 | X74: 0 | Y74: 0 | Z74: 0 | AA74: 0 | AB74: 0 | AC74: 0 | AD74: -25000 | AE74: 0 | AF74: 0 | AG74: 0 | AH74: 0 | AI74: 0 | AJ74: 0
A76: Administrative Overhead | B76: ='Expense Input'!C39 -> 0 | C76: ='Expense Input'!D39 -> 0 | D76: ='Expense Input'!E39 -> 0 | E76: ='Expense Input'!F39 -> 0 | F76: ='Expense Input'!G39 -> 0 | G76: ='Expense Input'!H39 -> 0 | H76: ='Expense Input'!I39 -> 0 | I76: ='Expense Input'!J39 -> 0 | J76: ='Expense Input'!K39 -> 0 | K76: ='Expense Input'!L39 -> 0 | L76: ='Expense Input'!M39 -> 0 | M76: ='Expense Input'!N39 -> 0 | N76: ='Expense Input'!O39 -> 0 | O76: ='Expense Input'!P39 -> 0 | P76: ='Expense Input'!Q39 -> 0 | Q76: ='Expense Input'!R39 -> 0 | R76: ='Expense Input'!S39 -> 0 | S76: ='Expense Input'!T39 -> 0 | T76: ='Expense Input'!U39 -> 0 | U76: ='Expense Input'!V39 -> 0 | V76: ='Expense Input'!W39 -> 0 | W76: ='Expense Input'!X39 -> 0 | X76: ='Expense Input'!Y39 -> 0 | Y76: ='Expense Input'!Z39 -> 0 | Z76: ='Expense Input'!AA39 -> 0 | AA76: ='Expense Input'!AB39 -> 0 | AB76: ='Expense Input'!AC39 -> 0 | AC76: ='Expense Input'!AD39 -> 0 | AD76: ='Expense Input'!AE39 -> 0 | AE76: ='Expense Input'!AF39 -> 0 | AF76: ='Expense Input'!AG39 -> 0 | AG76: ='Expense Input'!AH39 -> 0 | AH76: ='Expense Input'!AI39 -> 0 | AI76: ='Expense Input'!AJ39 -> 0 | AJ76: ='Expense Input'!AK39 -> 0
A77: Total Overhead | B77: =SUM(B76:B76) -> 0 | C77: 0 | D77: 0 | E77: 0 | F77: 0 | G77: 0 | H77: 0 | I77: 0 | J77: 0 | K77: 0 | L77: 0 | M77: 0 | N77: 0 | O77: 0 | P77: 0 | Q77: 0 | R77: 0 | S77: 0 | T77: 0 | U77: 0 | V77: 0 | W77: 0 | X77: 0 | Y77: 0 | Z77: 0 | AA77: 0 | AB77: 0 | AC77: 0 | AD77: 0 | AE77: 0 | AF77: 0 | AG77: 0 | AH77: 0 | AI77: 0 | AJ77: 0
A79: Net Margin | B79: =B74-B77 -> -25000 | C79: 0 | D79: 0 | E79: 0 | F79: 0 | G79: 0 | H79: 0 | I79: -25000 | J79: 0 | K79: 0 | L79: 0 | M79: 0 | N79: 0 | O79: 0 | P79: -25000 | Q79: 0 | R79: 0 | S79: 0 | T79: 0 | U79: 0 | V79: 0 | W79: -25000 | X79: 0 | Y79: 0 | Z79: 0 | AA79: 0 | AB79: 0 | AC79: 0 | AD79: -25000 | AE79: 0 | AF79: 0 | AG79: 0 | AH79: 0 | AI79: 0 | AJ79: 0
A81: Cash Flow*
A82: Accumulated Cash Flow
A83: Payback
A85: FTE Student Enrollment | B85: ='UG Trad Input'!C3+'UG Non-Trad Input'!C9+'Grad Input'!C9 -> 0 | C85: ='UG Trad Input'!D3+'UG Non-Trad Input'!D9+'Grad Input'!D9 -> 0 | D85: ='UG Trad Input'!E3+'UG Non-Trad Input'!E9+'Grad Input'!E9 -> 0 | E85: ='UG Trad Input'!F3+'UG Non-Trad Input'!F9+'Grad Input'!F9 -> 0 | F85: ='UG Trad Input'!G3+'UG Non-Trad Input'!G9+'Grad Input'!G9 -> 0 | G85: ='UG Trad Input'!H3+'UG Non-Trad Input'!H9+'Grad Input'!H9 -> 0 | H85: ='UG Trad Input'!I3+'UG Non-Trad Input'!I9+'Grad Input'!I9 -> 0 | I85: ='UG Trad Input'!J3+'UG Non-Trad Input'!J9+'Grad Input'!J9 -> 0 | J85: ='UG Trad Input'!K3+'UG Non-Trad Input'!K9+'Grad Input'!K9 -> 0 | K85: ='UG Trad Input'!L3+'UG Non-Trad Input'!L9+'Grad Input'!L9 -> 0 | L85: ='UG Trad Input'!M3+'UG Non-Trad Input'!M9+'Grad Input'!M9 -> 0 | M85: ='UG Trad Input'!N3+'UG Non-Trad Input'!N9+'Grad Input'!N9 -> 0 | N85: ='UG Trad Input'!O3+'UG Non-Trad Input'!O9+'Grad Input'!O9 -> 0 | O85: ='UG Trad Input'!P3+'UG Non-Trad Input'!P9+'Grad Input'!P9 -> 0 | P85: ='UG Trad Input'!Q3+'UG Non-Trad Input'!Q9+'Grad Input'!Q9 -> 0 | Q85: ='UG Trad Input'!R3+'UG Non-Trad Input'!R9+'Grad Input'!R9 -> 0 | R85: ='UG Trad Input'!S3+'UG Non-Trad Input'!S9+'Grad Input'!S9 -> 0 | S85: ='UG Trad Input'!T3+'UG Non-Trad Input'!T9+'Grad Input'!T9 -> 0 | T85: ='UG Trad Input'!U3+'UG Non-Trad Input'!U9+'Grad Input'!U9 -> 0 | U85: ='UG Trad Input'!V3+'UG Non-Trad Input'!V9+'Grad Input'!V9 -> 0 | V85: ='UG Trad Input'!W3+'UG Non-Trad Input'!W9+'Grad Input'!W9 -> 0 | W85: ='UG Trad Input'!X3+'UG Non-Trad Input'!X9+'Grad Input'!X9 -> 0 | X85: ='UG Trad Input'!Y3+'UG Non-Trad Input'!Y9+'Grad Input'!Y9 -> 0 | Y85: ='UG Trad Input'!Z3+'UG Non-Trad Input'!Z9+'Grad Input'!Z9 -> 0 | Z85: ='UG Trad Input'!AA3+'UG Non-Trad Input'!AA9+'Grad Input'!AA9 -> 0 | AA85: ='UG Trad Input'!AB3+'UG Non-Trad Input'!AB9+'Grad Input'!AB9 -> 0 | AB85: ='UG Trad Input'!AC3+'UG Non-Trad Input'!AC9+'Grad Input'!AC9 -> 0 | AC85: ='UG Trad Input'!AD3+'UG Non-Trad Input'!AD9+'Grad Input'!AD9 -> 0 | AD85: ='UG Trad Input'!AE3+'UG Non-Trad Input'!AE9+'Grad Input'!AE9 -> 0 | AE85: ='UG Trad Input'!AF3+'UG Non-Trad Input'!AF9+'Grad Input'!AF9 -> 0 | AF85: ='UG Trad Input'!AG3+'UG Non-Trad Input'!AG9+'Grad Input'!AG9 -> 0 | AG85: ='UG Trad Input'!AH3+'UG Non-Trad Input'!AH9+'Grad Input'!AH9 -> 0 | AH85: ='UG Trad Input'!AI3+'UG Non-Trad Input'!AI9+'Grad Input'!AI9 -> 0 | AI85: ='UG Trad Input'!AJ3+'UG Non-Trad Input'!AJ9+'Grad Input'!AJ9 -> 0 | AJ85: ='UG Trad Input'!AK3+'UG Non-Trad Input'!AK9+'Grad Input'!AK9 -> 0
A86: FTE Faculty Increase | B86: ='Expense Input'!C3 -> 0 | C86: ='Expense Input'!D3 -> 0 | D86: ='Expense Input'!E3 -> 0 | E86: ='Expense Input'!F3 -> 0 | F86: ='Expense Input'!G3 -> 0 | G86: ='Expense Input'!H3 -> 0 | H86: ='Expense Input'!I3 -> 0 | I86: ='Expense Input'!J3 -> 0 | J86: ='Expense Input'!K3 -> 0 | K86: ='Expense Input'!L3 -> 0 | L86: ='Expense Input'!M3 -> 0 | M86: ='Expense Input'!N3 -> 0 | N86: ='Expense Input'!O3 -> 0 | O86: ='Expense Input'!P3 -> 0 | P86: ='Expense Input'!Q3 -> 0 | Q86: ='Expense Input'!R3 -> 0 | R86: ='Expense Input'!S3 -> 0 | S86: ='Expense Input'!T3 -> 0 | T86: ='Expense Input'!U3 -> 0 | U86: ='Expense Input'!V3 -> 0 | V86: ='Expense Input'!W3 -> 0 | W86: ='Expense Input'!X3 -> 0 | X86: ='Expense Input'!Y3 -> 0 | Y86: ='Expense Input'!Z3 -> 0 | Z86: ='Expense Input'!AA3 -> 0 | AA86: ='Expense Input'!AB3 -> 0 | AB86: ='Expense Input'!AC3 -> 0 | AC86: ='Expense Input'!AD3 -> 0 | AD86: ='Expense Input'!AE3 -> 0 | AE86: ='Expense Input'!AF3 -> 0 | AF86: ='Expense Input'!AG3 -> 0 | AG86: ='Expense Input'!AH3 -> 0 | AH86: ='Expense Input'!AI3 -> 0 | AI86: ='Expense Input'!AJ3 -> 0 | AJ86: ='Expense Input'!AK3 -> 0
A87: FTE Staff Increase | B87: ='Expense Input'!C4 -> 0 | C87: ='Expense Input'!D4 -> 0 | D87: ='Expense Input'!E4 -> 0 | E87: ='Expense Input'!F4 -> 0 | F87: ='Expense Input'!G4 -> 0 | G87: ='Expense Input'!H4 -> 0 | H87: ='Expense Input'!I4 -> 0 | I87: ='Expense Input'!J4 -> 0 | J87: ='Expense Input'!K4 -> 0 | K87: ='Expense Input'!L4 -> 0 | L87: ='Expense Input'!M4 -> 0 | M87: ='Expense Input'!N4 -> 0 | N87: ='Expense Input'!O4 -> 0 | O87: ='Expense Input'!P4 -> 0 | P87: ='Expense Input'!Q4 -> 0 | Q87: ='Expense Input'!R4 -> 0 | R87: ='Expense Input'!S4 -> 0 | S87: ='Expense Input'!T4 -> 0 | T87: ='Expense Input'!U4 -> 0 | U87: ='Expense Input'!V4 -> 0 | V87: ='Expense Input'!W4 -> 0 | W87: ='Expense Input'!X4 -> 0 | X87: ='Expense Input'!Y4 -> 0 | Y87: ='Expense Input'!Z4 -> 0 | Z87: ='Expense Input'!AA4 -> 0 | AA87: ='Expense Input'!AB4 -> 0 | AB87: ='Expense Input'!AC4 -> 0 | AC87: ='Expense Input'!AD4 -> 0 | AD87: ='Expense Input'!AE4 -> 0 | AE87: ='Expense Input'!AF4 -> 0 | AF87: ='Expense Input'!AG4 -> 0 | AG87: ='Expense Input'!AH4 -> 0 | AH87: ='Expense Input'!AI4 -> 0 | AI87: ='Expense Input'!AJ4 -> 0 | AJ87: ='Expense Input'!AK4 -> 0
A89: *Overhead is excluded from the cash flow calculations

Sheet General Input (hidden)
A1: Creighton University | B1: Legend:
A2: New program financial proforma | C2: Standard assumption, no changes
A3: General Input page | C3: Assumption input cell
C4: Calculated cell
A5: Name of Program:
A6: Online Program, if yes, type "Online Program"
A7: Revenue Type (see list below):
A8: Contact Name
A10: Go To: | B10: Traditional Undergraduate Revenue Input
B11: Non-Traditional Undergraduate Revenue Input
B12: Graduate Program Revenue Input
B13: Flat Rate Certificate Program Revenue Input
B14: Credit Hours Based Certificate Program Revenue Input
B15: Endowment, Gift & Other Income Input
B16: Expense Assumptions Input

Sheet UG Trad Input (hidden)
C1: Year 1 | J1: Year 2 | Q1: Year 3 | X1: Year 4 | AE1: Year 5
A2: Traditional Undergraduate Program Revenue Assumptions: | B2: Notes | C2: Summer Year 1 Term 2 | D2: Fall Year 1 Term 1 | E2: Fall Year 1 Term 2 | F2: Winter Year 1 | G2: Spring Year 1 Term 1 | H2: Spring Year 1 Term 2 | I2: Summer Year 1 Term 1 | J2: Summer Year 2 Term 2 | K2: Fall Year 2 Term 1 | L2: Fall Year 2 Term 2 | M2: Winter Year 2 | N2: Spring Year 2 Term 1 | O2: Spring Year 2 Term 2 | P2: Summer Year 2 Term 1 | Q2: Summer Year 3 Term 2 | R2: Fall Year 3 Term 1 | S2: Fall Year 3 Term 2 | T2: Winter Year 3 | U2: Spring Year 3 Term 1 | V2: Spring Year 3 Term 2 | W2: Summer Year 3 Term 1 | X2: Summer Year 4 Term 2 | Y2: Fall Year 4 Term 1 | Z2: Fall Year 4 Term 2 | AA2: Winter Year 4 | AB2: Spring Year 4 Term 1 | AC2: Spring Year 4 Term 2 | AD2: Summer Year 4 Term 1 | AE2: Summer Year 5 Term 2 | AF2: Fall Year 5 Term 1 | AG2: Fall Year 5 Term 2 | AH2: Winter Year 5 | AI2: Spring Year 5 Term 1 | AJ2: Spring Year 5 Term 2 | AK2: Summer Year 5 Term 1
A3: FTE Enrollment | D3: =SUM(D4:D7) -> 0 | G3: =SUM(G4:G7) -> 0 | K3: =SUM(K4:K7) -> 0 | N3: =SUM(N4:N7) -> 0 | R3: =SUM(R4:R7) -> 0 | U3: =SUM(U4:U7) -> 0 | Y3: =SUM(Y4:Y7) -> 0 | AB3: =SUM(AB4:AB7) -> 0 | AF3: =SUM(AF4:AF7) -> 0 | AI3: =SUM(AI4:AI7) -> 0
A4: Freshmen
A5: Sophomore
A6: Junior
A7: Senior
A8: Tuition per FTE per semester | B8: 2013-2014 | D8: =Assumptions!$B$7 -> 16898 | G8: =Assumptions!$B$7 -> 16898 | K8: =Assumptions!$C$7 -> 17320 | N8: =Assumptions!$C$7 -> 17320 | R8: =Assumptions!$D$7 -> 17753 | U8: =Assumptions!$D$7 -> 17753 | Y8: =Assumptions!$E$7 -> 18197 | AB8: =Assumptions!$E$7 -> 18197 | AF8: =Assumptions!$F$7 -> 18652 | AI8: =Assumptions!$F$7 -> 18652
A9: Fees per FTE per semester | D9: =Assumptions!#REF!+Assumptions!#REF! ->  | G9: =Assumptions!#REF!+Assumptions!#REF! ->  | K9: =Assumptions!#REF!+Assumptions!#REF! ->  | N9: =Assumptions!#REF!+Assumptions!#REF! ->  | R9: =Assumptions!#REF!+Assumptions!#REF! ->  | U9: =Assumptions!#REF!+Assumptions!#REF! ->  | Y9: =Assumptions!#REF!+Assumptions!#REF! ->  | AB9: =Assumptions!#REF!+Assumptions!#REF! ->  | AF9: =Assumptions!#REF!+Assumptions!#REF! ->  | AI9: =Assumptions!#REF!+Assumptions!#REF! -> 
A10: Tuition discount rate | B10: based on fall 2013 incoming freshmen, assumes holding flat throughout program | D10: =Assumptions!$B$12 -> 0.475 | G10: =Assumptions!$B$12 -> 0.475 | K10: =Assumptions!$C$12 -> 0.475 | N10: =Assumptions!$C$12 -> 0.475 | R10: =Assumptions!$D$12 -> 0.475 | U10: =Assumptions!$D$12 -> 0.475 | Y10: =Assumptions!$E$12 -> 0.475 | AB10: =Assumptions!$E$12 -> 0.475 | AF10: =Assumptions!$F$12 -> 0.475 | AI10: =Assumptions!$F$12 -> 0.475
A11: Annual tuition increase | J11: =Assumptions!$C$6 -> 0.025 | Q11: =Assumptions!$D$6 -> 0.025 | X11: =Assumptions!$E$6 -> 0.025 | AE11: =Assumptions!$F$6 -> 0.025
A12: Traditional undergraduate program assumptions assumes full-time, regular undergraduate tuition rate for fall & spring semesters, less tuition discount
A13: Tuition | D13: =D3*D8 -> 0 | G13: =G3*G8 -> 0 | K13: =K3*K8 -> 0 | N13: 0 | R13: 0 | U13: 0 | Y13: 0 | AB13: 0 | AF13: 0 | AI13: 0
A14: Tuition Discount | D14: =ROUND(D13*-D10,0) -> 0 | G14: 0 | K14: 0 | N14: 0 | R14: 0 | U14: 0 | Y14: 0 | AB14: 0 | AF14: 0 | AI14: 0
A15: Total Net Tuition | D15: =D13+D14 -> 0 | G15: 0 | K15: 0 | N15: 0 | R15: 0 | U15: 0 | Y15: 0 | AB15: 0 | AF15: 0 | AI15: 0
G18: =+G13+D13 -> 0 | N18: =+N13+K13 -> 0
G19: =+G14+D14 -> 0 | N19: =+N14+K14 -> 0
G20: =+G15+D15 -> 0 | N20: =+N15+K15 -> 0

Sheet UG Non-Trad Input (hidden)
C1: Year 1 | J1: Year 2 | Q1: Year 3 | X1: Year 4 | AE1: Year 5
A2: Non-Traditional Undergraduate Program Revenue Assumptions: | B2: Notes | C2: Summer Year 1 Term 2 | D2: Fall Year 1 Term 1 | E2: Fall Year 1 Term 2 | F2: Winter Year 1 | G2: Spring Year 1 Term 1 | H2: Spring Year 1 Term 2 | I2: Summer Year 1 Term 1 | J2: Summer Year 2 Term 2 | K2: Fall Year 2 Term 1 | L2: Fall Year 2 Term 2 | M2: Winter Year 2 | N2: Spring Year 2 Term 1 | O2: Spring Year 2 Term 2 | P2: Summer Year 2 Term 1 | Q2: Summer Year 3 Term 2 | R2: Fall Year 3 Term 1 | S2: Fall Year 3 Term 2 | T2: Winter Year 3 | U2: Spring Year 3 Term 1 | V2: Spring Year 3 Term 2 | W2: Summer Year 3 Term 1 | X2: Summer Year 4 Term 2 | Y2: Fall Year 4 Term 1 | Z2: Fall Year 4 Term 2 | AA2: Winter Year 4 | AB2: Spring Year 4 Term 1 | AC2: Spring Year 4 Term 2 | AD2: Summer Year 4 Term 1 | AE2: Summer Year 5 Term 2 | AF2: Fall Year 5 Term 1 | AG2: Fall Year 5 Term 2 | AH2: Winter Year 5 | AI2: Spring Year 5 Term 1 | AJ2: Spring Year 5 Term 2 | AK2: Summer Year 5 Term 1
A3: Enrollment | C3: =SUM(C4:C7) -> 0 | D3: =SUM(D4:D7) -> 0 | E3: 0 | F3: 0 | G3: 0 | H3: 0 | I3: 0 | J3: 0 | K3: 0 | L3: 0 | M3: 0 | N3: 0 | O3: 0 | P3: 0 | Q3: 0 | R3: 0 | S3: 0 | T3: 0 | U3: 0 | V3: 0 | W3: 0 | X3: 0 | Y3: 0 | Z3: 0 | AA3: 0 | AB3: 0 | AC3: 0 | AD3: 0 | AE3: 0 | AF3: 0 | AG3: 0 | AH3: 0 | AI3: 0 | AJ3: 0 | AK3: 0
A4: Freshmen
A5: Sophomore
A6: Junior
A7: Senior
A8: Average number of credit hours per student
A9: FTE Enrollment | B9: Assumes 24 hours per FTE | C9: =C3*C8/24 -> 0 | D9: =D3*D8/24 -> 0 | E9: 0 | F9: 0 | G9: 0 | H9: 0 | I9: 0 | J9: 0 | K9: 0 | L9: 0 | M9: 0 | N9: 0 | O9: 0 | P9: 0 | Q9: 0 | R9: 0 | S9: 0 | T9: 0 | U9: 0 | V9: 0 | W9: 0 | X9: 0 | Y9: 0 | Z9: 0 | AA9: 0 | AB9: 0 | AC9: 0 | AD9: 0 | AE9: 0 | AF9: 0 | AG9: 0 | AH9: 0 | AI9: 0 | AJ9: 0 | AK9: 0
A10: Tuition per credit hour | C10: =Assumptions!B8 -> 412 | D10: =C10 -> 412 | E10: 412 | F10: 412 | G10: 412 | H10: 412 | I10: 412 | J10: =Assumptions!$C$8 -> 422 | K10: =J10 -> 422 | L10: 422 | M10: 422 | N10: 422 | O10: 422 | P10: 422 | Q10: =Assumptions!$D$8 -> 433 | R10: =Q10 -> 433 | S10: 433 | T10: 433 | U10: 433 | V10: 433 | W10: 433 | X10: =Assumptions!$E$8 -> 444 | Y10: =X10 -> 444 | Z10: 444 | AA10: 444 | AB10: 444 | AC10: 444 | AD10: 444 | AE10: =Assumptions!$F$8 -> 455 | AF10: =AE10 -> 455 | AG10: 455 | AH10: 455 | AI10: 455 | AJ10: 455 | AK10: 455
A11: Tuition discount rate | C11: =Assumptions!$B$13 -> 0 | D11: =C11 -> 0 | E11: 0 | F11: 0 | G11: 0 | H11: 0 | I11: 0 | J11: =Assumptions!$C$13 -> 0 | K11: =J11 -> 0 | L11: 0 | M11: 0 | N11: 0 | O11: 0 | P11: 0 | Q11: =Assumptions!$D$13 -> 0 | R11: =Q11 -> 0 | S11: 0 | T11: 0 | U11: 0 | V11: 0 | W11: 0 | X11: =Assumptions!$E$13 -> 0 | Y11: =X11 -> 0 | Z11: 0 | AA11: 0 | AB11: 0 | AC11: 0 | AD11: 0 | AE11: =Assumptions!$F$13 -> 0 | AF11: =AE11 -> 0 | AG11: 0 | AH11: 0 | AI11: 0 | AJ11: 0 | AK11: 0
A12: Annual tuition increase | J12: =Assumptions!$C$6 -> 0.025 | Q12: =Assumptions!$D$6 -> 0.025 | X12: =Assumptions!$E$6 -> 0.025 | AE12: =Assumptions!$F$6 -> 0.025
A14: Tuition | C14: =(C3*C8*C10) -> 0 | D14: =(D3*D8*D10) -> 0 | E14: 0 | F14: 0 | G14: 0 | H14: 0 | I14: 0 | J14: 0 | K14: 0 | L14: 0 | M14: 0 | N14: 0 | O14: 0 | P14: 0 | Q14: 0 | R14: 0 | S14: 0 | T14: 0 | U14: 0 | V14: 0 | W14: 0 | X14: 0 | Y14: 0 | Z14: 0 | AA14: 0 | AB14: 0 | AC14: 0 | AD14: 0 | AE14: 0 | AF14: 0 | AG14: 0 | AH14: 0 | AI14: 0 | AJ14: 0 | AK14: 0
A15: Tuition Discount | C15: =ROUND(C14*-C11,0) -> 0 | D15: =ROUND(D14*-D11,0) -> 0 | E15: 0 | F15: 0 | G15: 0 | H15: 0 | I15: 0 | J15: 0 | K15: 0 | L15: 0 | M15: 0 | N15: 0 | O15: 0 | P15: 0 | Q15: 0 | R15: 0 | S15: 0 | T15: 0 | U15: 0 | V15: 0 | W15: 0 | X15: 0 | Y15: 0 | Z15: 0 | AA15: 0 | AB15: 0 | AC15: 0 | AD15: 0 | AE15: 0 | AF15: 0 | AG15: 0 | AH15: 0 | AI15: 0 | AJ15: 0 | AK15: 0
A16: Total Net Tuition | C16: =C14+C15 -> 0 | D16: =D14+D15 -> 0 | E16: 0 | F16: 0 | G16: 0 | H16: 0 | I16: 0 | J16: 0 | K16: 0 | L16: 0 | M16: 0 | N16: 0 | O16: 0 | P16: 0 | Q16: 0 | R16: 0 | S16: 0 | T16: 0 | U16: 0 | V16: 0 | W16: 0 | X16: 0 | Y16: 0 | Z16: 0 | AA16: 0 | AB16: 0 | AC16: 0 | AD16: 0 | AE16: 0 | AF16: 0 | AG16: 0 | AH16: 0 | AI16: 0 | AJ16: 0 | AK16: 0

Sheet Grad Input (hidden)
C1: Year 1 | J1: Year 2 | Q1: Year 3 | X1: Year 4 | AE1: Year 5
A2: Graduate Program Revenue Assumptions: | B2: Notes | C2: Summer Year 1 Term 2 | D2: Fall Year 1 Term 1 | E2: Fall Year 1 Term 2 | F2: Winter Year 1 | G2: Spring Year 1 Term 1 | H2: Spring Year 1 Term 2 | I2: Summer Year 1 Term 1 | J2: Summer Year 2 Term 2 | K2: Fall Year 2 Term 1 | L2: Fall Year 2 Term 2 | M2: Winter Year 2 | N2: Spring Year 2 Term 1 | O2: Spring Year 2 Term 2 | P2: Summer Year 2 Term 1 | Q2: Summer Year 3 Term 2 | R2: Fall Year 3 Term 1 | S2: Fall Year 3 Term 2 | T2: Winter Year 3 | U2: Spring Year 3 Term 1 | V2: Spring Year 3 Term 2 | W2: Summer Year 3 Term 1 | X2: Summer Year 4 Term 2 | Y2: Fall Year 4 Term 1 | Z2: Fall Year 4 Term 2 | AA2: Winter Year 4 | AB2: Spring Year 4 Term 1 | AC2: Spring Year 4 Term 2 | AD2: Summer Year 4 Term 1 | AE2: Summer Year 5 Term 2 | AF2: Fall Year 5 Term 1 | AG2: Fall Year 5 Term 2 | AH2: Winter Year 5 | AI2: Spring Year 5 Term 1 | AJ2: Spring Year 5 Term 2 | AK2: Summer Year 5 Term 1
A3: Enrollment | C3: =SUM(C4:C5) -> 0 | D3: =SUM(D4:D5) -> 0 | E3: 0 | F3: 0 | G3: 0 | H3: 0 | I3: 0 | J3: 0 | K3: 0 | L3: 0 | M3: 0 | N3: 0 | O3: 0 | P3: 0 | Q3: 0 | R3: 0 | S3: 0 | T3: 0 | U3: 0 | V3: 0 | W3: 0 | X3: 0 | Y3: 0 | Z3: 0 | AA3: 0 | AB3: 0 | AC3: 0 | AD3: 0 | AE3: 0 | AF3: 0 | AG3: 0 | AH3: 0 | AI3: 0 | AJ3: 0 | AK3: 0
A4: 1st Year Students
A5: 2nd Year Students
A6: Average number of credit hours per student
A7: 1st Year Students
A8: 2nd Year Students
A9: FTE Enrollment | B9: Assumes 20 hours per FTE | C9: =((C4*C7)+(C5*C8))/20 -> 0 | D9: =((D4*D7)+(D5*D8))/20 -> 0 | E9: 0 | F9: 0 | G9: 0 | H9: 0 | I9: 0 | J9: 0 | K9: 0 | L9: 0 | M9: 0 | N9: 0 | O9: 0 | P9: 0 | Q9: 0 | R9: 0 | S9: 0 | T9: 0 | U9: 0 | V9: 0 | W9: 0 | X9: 0 | Y9: 0 | Z9: 0 | AA9: 0 | AB9: 0 | AC9: 0 | AD9: 0 | AE9: 0 | AF9: 0 | AG9: 0 | AH9: 0 | AI9: 0 | AJ9: 0 | AK9: 0
A10: Tuition per credit hour | C10: =Assumptions!B9 -> 780 | D10: =C10 -> 780 | E10: 780 | F10: 780 | G10: 780 | H10: 780 | I10: 780 | J10: =Assumptions!$C$9 -> 800 | K10: =J10 -> 800 | L10: 800 | M10: 800 | N10: 800 | O10: 800 | P10: 800 | Q10: =Assumptions!$D$9 -> 820 | R10: =Q10 -> 820 | S10: 820 | T10: 820 | U10: 820 | V10: 820 | W10: 820 | X10: =Assumptions!$E$9 -> 841 | Y10: =X10 -> 841 | Z10: 841 | AA10: 841 | AB10: 841 | AC10: 841 | AD10: 841 | AE10: =Assumptions!$F$9 -> 862 | AF10: =AE10 -> 862 | AG10: 862 | AH10: 862 | AI10: 862 | AJ10: 862 | AK10: 862
A11: Tuition discount rate | C11: =Assumptions!$B$14 -> 0 | D11: =C11 -> 0 | E11: 0 | F11: 0 | G11: 0 | H11: 0 | I11: 0 | J11: =Assumptions!$C$14 -> 0 | K11: =J11 -> 0 | L11: 0 | M11: 0 | N11: 0 | O11: 0 | P11: 0 | Q11: =Assumptions!$D$14 -> 0 | R11: =Q11 -> 0 | S11: 0 | T11: 0 | U11: 0 | V11: 0 | W11: 0 | X11: =Assumptions!$E$14 -> 0 | Y11: =X11 -> 0 | Z11: 0 | AA11: 0 | AB11: 0 | AC11: 0 | AD11: 0 | AE11: =Assumptions!$F$14 -> 0 | AF11: =AE11 -> 0 | AG11: 0 | AH11: 0 | AI11: 0 | AJ11: 0 | AK11: 0
A12: Annual tuition increase | J12: =Assumptions!$C$6 -> 0.025 | Q12: =Assumptions!$D$6 -> 0.025 | X12: =Assumptions!$E$6 -> 0.025 | AE12: =Assumptions!$F$6 -> 0.025
A13: Tuition | C13: =(C4*C7*C10)+(C5*C8*C10) -> 0 | D13: =(D4*D7*D10)+(D5*D8*D10) -> 0 | E13: 0 | F13: 0 | G13: 0 | H13: 0 | I13: 0 | J13: 0 | K13: 0 | L13: 0 | M13: 0 | N13: 0 | O13: 0 | P13: 0 | Q13: 0 | R13: 0 | S13: 0 | T13: 0 | U13: 0 | V13: 0 | W13: 0 | X13: 0 | Y13: 0 | Z13: 0 | AA13: 0 | AB13: 0 | AC13: 0 | AD13: 0 | AE13: 0 | AF13: 0 | AG13: 0 | AH13: 0 | AI13: 0 | AJ13: 0 | AK13: 0
A14: Tuition Discount | C14: =ROUND(C13*-C11,0) -> 0 | D14: =ROUND(D13*-D11,0) -> 0 | E14: 0 | F14: 0 | G14: 0 | H14: 0 | I14: 0 | J14: 0 | K14: 0 | L14: 0 | M14: 0 | N14: 0 | O14: 0 | P14: 0 | Q14: 0 | R14: 0 | S14: 0 | T14: 0 | U14: 0 | V14: 0 | W14: 0 | X14: 0 | Y14: 0 | Z14: 0 | AA14: 0 | AB14: 0 | AC14: 0 | AD14: 0 | AE14: 0 | AF14: 0 | AG14: 0 | AH14: 0 | AI14: 0 | AJ14: 0 | AK14: 0
A15: Total Net Tuition | C15: =C13+C14 -> 0 | D15: =D13+D14 -> 0 | E15: 0 | F15: 0 | G15: 0 | H15: 0 | I15: 0 | J15: 0 | K15: 0 | L15: 0 | M15: 0 | N15: 0 | O15: 0 | P15: 0 | Q15: 0 | R15: 0 | S15: 0 | T15: 0 | U15: 0 | V15: 0 | W15: 0 | X15: 0 | Y15: 0 | Z15: 0 | AA15: 0 | AB15: 0 | AC15: 0 | AD15: 0 | AE15: 0 | AF15: 0 | AG15: 0 | AH15: 0 | AI15: 0 | AJ15: 0 | AK15: 0

Sheet Certificate Input (hidden)
C1: Year 1 | J1: Year 2 | Q1: Year 3 | X1: Year 4 | AE1: Year 5
A2: Certificate/Symposium/Seminar/Workshop Program Revenue Assumptions | B2: Notes | C2: Summer Year 1 Term 2 | D2: Fall Year 1 Term 1 | E2: Fall Year 1 Term 2 | F2: Winter Year 1 | G2: Spring Year 1 Term 1 | H2: Spring Year 1 Term 2 | I2: Summer Year 1 Term 1 | J2: Summer Year 2 Term 2 | K2: Fall Year 2 Term 1 | L2: Fall Year 2 Term 2 | M2: Winter Year 2 | N2: Spring Year 2 Term 1 | O2: Spring Year 2 Term 2 | P2: Summer Year 2 Term 1 | Q2: Summer Year 3 Term 2 | R2: Fall Year 3 Term 1 | S2: Fall Year 3 Term 2 | T2: Winter Year 3 | U2: Spring Year 3 Term 1 | V2: Spring Year 3 Term 2 | W2: Summer Year 3 Term 1 | X2: Summer Year 4 Term 2 | Y2: Fall Year 4 Term 1 | Z2: Fall Year 4 Term 2 | AA2: Winter Year 4 | AB2: Spring Year 4 Term 1 | AC2: Spring Year 4 Term 2 | AD2: Summer Year 4 Term 1 | AE2: Summer Year 5 Term 2 | AF2: Fall Year 5 Term 1 | AG2: Fall Year 5 Term 2 | AH2: Winter Year 5 | AI2: Spring Year 5 Term 1 | AJ2: Spring Year 5 Term 2 | AK2: Summer Year 5 Term 1
A3: Certificate/Symposium/Seminar/Workshop Program Revenue Assumptions - Flat Rate Program:
A4: Enrollment
A5: Tuition per student | C5: =Assumptions!B10 -> 1500 | D5: =C5 -> 1500 | E5: 1500 | F5: 1500 | G5: 1500 | H5: 1500 | I5: 1500 | J5: =Assumptions!$C$10 -> 1538 | K5: =J5 -> 1538 | L5: 1538 | M5: 1538 | N5: 1538 | O5: 1538 | P5: 1538 | Q5: =Assumptions!$D$10 -> 1576 | R5: =Q5 -> 1576 | S5: 1576 | T5: 1576 | U5: 1576 | V5: 1576 | W5: 1576 | X5: =Assumptions!$E$10 -> 1615 | Y5: =X5 -> 1615 | Z5: 1615 | AA5: 1615 | AB5: 1615 | AC5: 1615 | AD5: 1615 | AE5: =Assumptions!$F$10 -> 1655 | AF5: =AE5 -> 1655 | AG5: 1655 | AH5: 1655 | AI5: 1655 | AJ5: 1655 | AK5: 1655
A6: Annual tuition increase | J6: =Assumptions!$C$6 -> 0.025 | Q6: =Assumptions!$D$6 -> 0.025 | X6: =Assumptions!$E$6 -> 0.025 | AE6: =Assumptions!$F$6 -> 0.025
A7: Tuition | C7: =C4*C5 -> 0 | D7: =D4*D5 -> 0 | E7: 0 | F7: 0 | G7: 0 | H7: 0 | I7: 0 | J7: 0 | K7: 0 | L7: 0 | M7: 0 | N7: 0 | O7: 0 | P7: 0 | Q7: 0 | R7: 0 | S7: 0 | T7: 0 | U7: 0 | V7: 0 | W7: 0 | X7: 0 | Y7: 0 | Z7: 0 | AA7: 0 | AB7: 0 | AC7: 0 | AD7: 0 | AE7: 0 | AF7: 0 | AG7: 0 | AH7: 0 | AI7: 0 | AJ7: 0 | AK7: 0
A9: Certificate/Symposium/Seminar/Workshop Program Revenue Assumptions - Based On Credit Hours:
A10: Student Enrollment
A11: Average number of credit hours per student
A12: Tuition per credit hour | C12: =Assumptions!B11 -> 780 | D12: =C12 -> 780 | E12: =D12 -> 780 | F12: =E12 -> 780 | G12: =F12 -> 780 | H12: =G12 -> 780 | I12: =H12 -> 780 | J12: =Assumptions!$C$11 -> 800 | K12: =J12 -> 800 | L12: =K12 -> 800 | M12: =L12 -> 800 | N12: =M12 -> 800 | O12: =N12 -> 800 | P12: =O12 -> 800 | Q12: =Assumptions!$D$11 -> 820 | R12: =Q12 -> 820 | S12: =R12 -> 820 | T12: =S12 -> 820 | U12: =T12 -> 820 | V12: =U12 -> 820 | W12: =V12 -> 820 | X12: =Assumptions!$E$11 -> 841 | Y12: =X12 -> 841 | Z12: =Y12 -> 841 | AA12: =Z12 -> 841 | AB12: =AA12 -> 841 | AC12: =AB12 -> 841 | AD12: =AC12 -> 841 | AE12: =Assumptions!$F$11 -> 862 | AF12: =AE12 -> 862 | AG12: =AF12 -> 862 | AH12: =AG12 -> 862 | AI12: =AH12 -> 862 | AJ12: =AI12 -> 862 | AK12: =AJ12 -> 862
A13: Annual tuition increase | J13: =Assumptions!$C$6 -> 0.025 | Q13: =Assumptions!$D$6 -> 0.025 | X13: =Assumptions!$E$6 -> 0.025 | AE13: =Assumptions!$F$6 -> 0.025
A14: Tuition | C14: =(C10*C11*C12) -> 0 | D14: =(D10*D11*D12) -> 0 | E14: 0 | F14: 0 | G14: 0 | H14: 0 | I14: 0 | J14: 0 | K14: 0 | L14: 0 | M14: 0 | N14: 0 | O14: 0 | P14: 0 | Q14: 0 | R14: 0 | S14: 0 | T14: 0 | U14: 0 | V14: 0 | W14: 0 | X14: 0 | Y14: 0 | Z14: 0 | AA14: 0 | AB14: 0 | AC14: 0 | AD14: 0 | AE14: 0 | AF14: 0 | AG14: 0 | AH14: 0 | AI14: 0 | AJ14: 0 | AK14: 0

Sheet Endow&Gift Input (hidden)
C1: Year 1 | J1: Year 2 | Q1: Year 3 | X1: Year 4 | AE1: Year 5
A2: Other Revenue Assumptions: | B2: Notes | C2: Summer Year 1 Term 2 | D2: Fall Year 1 Term 1 | E2: Fall Year 1 Term 2 | F2: Winter Year 1 | G2: Spring Year 1 Term 1 | H2: Spring Year 1 Term 2 | I2: Summer Year 1 Term 1 | J2: Summer Year 2 Term 2 | K2: Fall Year 2 Term 1 | L2: Fall Year 2 Term 2 | M2: Winter Year 2 | N2: Spring Year 2 Term 1 | O2: Spring Year 2 Term 2 | P2: Summer Year 2 Term 1 | Q2: Summer Year 3 Term 2 | R2: Fall Year 3 Term 1 | S2: Fall Year 3 Term 2 | T2: Winter Year 3 | U2: Spring Year 3 Term 1 | V2: Spring Year 3 Term 2 | W2: Summer Year 3 Term 1 | X2: Summer Year 4 Term 2 | Y2: Fall Year 4 Term 1 | Z2: Fall Year 4 Term 2 | AA2: Winter Year 4 | AB2: Spring Year 4 Term 1 | AC2: Spring Year 4 Term 2 | AD2: Summer Year 4 Term 1 | AE2: Summer Year 5 Term 2 | AF2: Fall Year 5 Term 1 | AG2: Fall Year 5 Term 2 | AH2: Winter Year 5 | AI2: Spring Year 5 Term 1 | AJ2: Spring Year 5 Term 2 | AK2: Summer Year 5 Term 1
A3: Other Income:
A4: Endowment Income
A5: Gift Income
A6: Other Revenue

Sheet Expense Input (hidden)
C1: Year 1 | J1: Year 2 | Q1: Year 3 | X1: Year 4 | AE1: Year 5
A2: Expense Assumptions: | B2: Notes | C2: Summer Year 1 Term 2 | D2: Fall Year 1 Term 1 | E2: Fall Year 1 Term 2 | F2: Winter Year 1 | G2: Spring Year 1 Term 1 | H2: Spring Year 1 Term 2 | I2: Summer Year 1 Term 1 | J2: Summer Year 2 Term 2 | K2: Fall Year 2 Term 1 | L2: Fall Year 2 Term 2 | M2: Winter Year 2 | N2: Spring Year 2 Term 1 | O2: Spring Year 2 Term 2 | P2: Summer Year 2 Term 1 | Q2: Summer Year 3 Term 2 | R2: Fall Year 3 Term 1 | S2: Fall Year 3 Term 2 | T2: Winter Year 3 | U2: Spring Year 3 Term 1 | V2: Spring Year 3 Term 2 | W2: Summer Year 3 Term 1 | X2: Summer Year 4 Term 2 | Y2: Fall Year 4 Term 1 | Z2: Fall Year 4 Term 2 | AA2: Winter Year 4 | AB2: Spring Year 4 Term 1 | AC2: Spring Year 4 Term 2 | AD2: Summer Year 4 Term 1 | AE2: Summer Year 5 Term 2 | AF2: Fall Year 5 Term 1 | AG2: Fall Year 5 Term 2 | AH2: Winter Year 5 | AI2: Spring Year 5 Term 1 | AJ2: Spring Year 5 Term 2 | AK2: Summer Year 5 Term 1
A3: Incremental Faculty FTEs
A4: Incremental Staff FTEs
A6: Faculty Salaries to be added
A7: Adjunct faculty to be added
A8: Staff Salaries to be added
A9: Course development stipends ($4000 per course)
A10: Teaching Assistant/Fellowship stipends
A11: Student Employment
A12: Benefits Rate | C12: =Assumptions!$B$15 -> 0.286 | J12: =Assumptions!$C$15 -> 0.286 | Q12: =Assumptions!$D$15 -> 0.286 | X12: =Assumptions!$E$15 -> 0.286 | AE12: =Assumptions!$F$15 -> 0.286
A13: Total Salaries | C13: =SUM(C6:C11) -> 0 | D13: 0 | E13: 0 | F13: 0 | G13: 0 | H13: 0 | I13: 0 | J13: 0 | K13: 0 | L13: 0 | M13: 0 | N13: 0 | O13: 0 | P13: 0 | Q13: 0 | R13: 0 | S13: 0 | T13: 0 | U13: 0 | V13: 0 | W13: 0 | X13: 0 | Y13: 0 | Z13: 0 | AA13: 0 | AB13: 0 | AC13: 0 | AD13: 0 | AE13: 0 | AF13: 0 | AG13: 0 | AH13: 0 | AI13: 0 | AJ13: 0 | AK13: 0
A14: Benefits | C14: =SUM(C6:C11)*$C$12 -> 0 | D14: =SUM(D6:D11)*$C$12 -> 0 | E14: 0 | F14: 0 | G14: 0 | H14: 0 | I14: 0 | J14: =SUM(J6:J11)*$J$12 -> 0 | K14: =SUM(K6:K11)*$J$12 -> 0 | L14: 0 | M14: 0 | N14: 0 | O14: 0 | P14: 0 | Q14: =SUM(Q6:Q11)*$Q$12 -> 0 | R14: =SUM(R6:R11)*$Q$12 -> 0 | S14: 0 | T14: 0 | U14: 0 | V14: 0 | W14: 0 | X14: =SUM(X6:X11)*$X$12 -> 0 | Y14: =SUM(Y6:Y11)*$X$12 -> 0 | Z14: 0 | AA14: 0 | AB14: 0 | AC14: 0 | AD14: 0 | AE14: =SUM(AE6:AE11)*$AE$12 -> 0 | AF14: =SUM(AF6:AF11)*$AE$12 -> 0 | AG14: 0 | AH14: 0 | AI14: 0 | AJ14: 0 | AK14: 0
A16: Non-Salary Expenses
A17: Direct Instructional Expenses | C17: =IF('General Input'!$B$6="Online Program",0,('UG Trad Input'!C3+'UG Non-Trad Input'!C3+'Grad Input'!C3+'Certificate Input'!C4+'Certificate Input'!C10)*Assumptions!$B$19) -> 0 | D17: =IF('General Input'!$B$6="Online Program",0,('UG Trad Input'!D3+'UG Non-Trad Input'!D3+'Grad Input'!D3+'Certificate Input'!D4+'Certificate Input'!D10)*Assumptions!$B$19) -> 0 | E17: =IF('General Input'!$B$6="Online Program",0,('UG Trad Input'!E3+'UG Non-Trad Input'!E3+'Grad Input'!E3+'Certificate Input'!E4+'Certificate Input'!E10)*Assumptions!$B$19) -> 0 | F17: =IF('General Input'!$B$6="Online Program",0,('UG Trad Input'!F3+'UG Non-Trad Input'!F3+'Grad Input'!F3+'Certificate Input'!F4+'Certificate Input'!F10)*Assumptions!$B$19) -> 0 | G17: =IF('General Input'!$B$6="Online Program",0,('UG Trad Input'!G3+'UG Non-Trad Input'!G3+'Grad Input'!G3+'Certificate Input'!G4+'Certificate Input'!G10)*Assumptions!$B$19) -> 0 | H17: =IF('General Input'!$B$6="Online Program",0,('UG Trad Input'!H3+'UG Non-Trad Input'!H3+'Grad Input'!H3+'Certificate Input'!H4+'Certificate Input'!H10)*Assumptions!$B$19) -> 0 | I17: =IF('General Input'!$B$6="Online Program",0,('UG Trad Input'!I3+'UG Non-Trad Input'!I3+'Grad Input'!I3+'Certificate Input'!I4+'Certificate Input'!I10)*Assumptions!$B$19) -> 0 | J17: =IF('General Input'!$B$6="Online Program",0,('UG Trad Input'!J3+'UG Non-Trad Input'!J3+'Grad Input'!J3+'Certificate Input'!J4+'Certificate Input'!J10)*Assumptions!$C$19) -> 0 | K17: =IF('General Input'!$B$6="Online Program",0,('UG Trad Input'!K3+'UG Non-Trad Input'!K3+'Grad Input'!K3+'Certificate Input'!K4+'Certificate Input'!K10)*Assumptions!$C$19) -> 0 | L17: =IF('General Input'!$B$6="Online Program",0,('UG Trad Input'!L3+'UG Non-Trad Input'!L3+'Grad Input'!L3+'Certificate Input'!L4+'Certificate Input'!L10)*Assumptions!$C$19) -> 0 | M17: =IF('General Input'!$B$6="Online Program",0,('UG Trad Input'!M3+'UG Non-Trad Input'!M3+'Grad Input'!M3+'Certificate Input'!M4+'Certificate Input'!M10)*Assumptions!$C$19) -> 0 | N17: =IF('General Input'!$B$6="Online Program",0,('UG Trad Input'!N3+'UG Non-Trad Input'!N3+'Grad Input'!N3+'Certificate Input'!N4+'Certificate Input'!N10)*Assumptions!$C$19) -> 0 | O17: =IF('General Input'!$B$6="Online Program",0,('UG Trad Input'!O3+'UG Non-Trad Input'!O3+'Grad Input'!O3+'Certificate Input'!O4+'Certificate Input'!O10)*Assumptions!$C$19) -> 0 | P17: =IF('General Input'!$B$6="Online Program",0,('UG Trad Input'!P3+'UG Non-Trad Input'!P3+'Grad Input'!P3+'Certificate Input'!P4+'Certificate Input'!P10)*Assumptions!$C$19) -> 0 | Q17: =IF('General Input'!$B$6="Online Program",0,('UG Trad Input'!Q3+'UG Non-Trad Input'!Q3+'Grad Input'!Q3+'Certificate Input'!Q4+'Certificate Input'!Q10)*Assumptions!$D$19) -> 0 | R17: =IF('General Input'!$B$6="Online Program",0,('UG Trad Input'!R3+'UG Non-Trad Input'!R3+'Grad Input'!R3+'Certificate Input'!R4+'Certificate Input'!R10)*Assumptions!$D$19) -> 0 | S17: =IF('General Input'!$B$6="Online Program",0,('UG Trad Input'!S3+'UG Non-Trad Input'!S3+'Grad Input'!S3+'Certificate Input'!S4+'Certificate Input'!S10)*Assumptions!$D$19) -> 0 | T17: =IF('General Input'!$B$6="Online Program",0,('UG Trad Input'!T3+'UG Non-Trad Input'!T3+'Grad Input'!T3+'Certificate Input'!T4+'Certificate Input'!T10)*Assumptions!$D$19) -> 0 | U17: =IF('General Input'!$B$6="Online Program",0,('UG Trad Input'!U3+'UG Non-Trad Input'!U3+'Grad Input'!U3+'Certificate Input'!U4+'Certificate Input'!U10)*Assumptions!$D$19) -> 0 | V17: =IF('General Input'!$B$6="Online Program",0,('UG Trad Input'!V3+'UG Non-Trad Input'!V3+'Grad Input'!V3+'Certificate Input'!V4+'Certificate Input'!V10)*Assumptions!$D$19) -> 0 | W17: =IF('General Input'!$B$6="Online Program",0,('UG Trad Input'!W3+'UG Non-Trad Input'!W3+'Grad Input'!W3+'Certificate Input'!W4+'Certificate Input'!W10)*Assumptions!$D$19) -> 0 | X17: =IF('General Input'!$B$6="Online Program",0,('UG Trad Input'!X3+'UG Non-Trad Input'!X3+'Grad Input'!X3+'Certificate Input'!X4+'Certificate Input'!X10)*Assumptions!$E$19) -> 0 | Y17: =IF('General Input'!$B$6="Online Program",0,('UG Trad Input'!Y3+'UG Non-Trad Input'!Y3+'Grad Input'!Y3+'Certificate Input'!Y4+'Certificate Input'!Y10)*Assumptions!$E$19) -> 0 | Z17: =IF('General Input'!$B$6="Online Program",0,('UG Trad Input'!Z3+'UG Non-Trad Input'!Z3+'Grad Input'!Z3+'Certificate Input'!Z4+'Certificate Input'!Z10)*Assumptions!$E$19) -> 0 | AA17: =IF('General Input'!$B$6="Online Program",0,('UG Trad Input'!AA3+'UG Non-Trad Input'!AA3+'Grad Input'!AA3+'Certificate Input'!AA4+'Certificate Input'!AA10)*Assumptions!$E$19) -> 0 | AB17: =IF('General Input'!$B$6="Online Program",0,('UG Trad Input'!AB3+'UG Non-Trad Input'!AB3+'Grad Input'!AB3+'Certificate Input'!AB4+'Certificate Input'!AB10)*Assumptions!$E$19) -> 0 | AC17: =IF('General Input'!$B$6="Online Program",0,('UG Trad Input'!AC3+'UG Non-Trad Input'!AC3+'Grad Input'!AC3+'Certificate Input'!AC4+'Certificate Input'!AC10)*Assumptions!$E$19) -> 0 | AD17: =IF('General Input'!$B$6="Online Program",0,('UG Trad Input'!AD3+'UG Non-Trad Input'!AD3+'Grad Input'!AD3+'Certificate Input'!AD4+'Certificate Input'!AD10)*Assumptions!$E$19) -> 0 | AE17: =IF('General Input'!$B$6="Online Program",0,('UG Trad Input'!AE3+'UG Non-Trad Input'!AE3+'Grad Input'!AE3+'Certificate Input'!AE4+'Certificate Input'!AE10)*Assumptions!$F$19) -> 0 | AF17: =IF('General Input'!$B$6="Online Program",0,('UG Trad Input'!AF3+'UG Non-Trad Input'!AF3+'Grad Input'!AF3+'Certificate Input'!AF4+'Certificate Input'!AF10)*Assumptions!$F$19) -> 0 | AG17: =IF('General Input'!$B$6="Online Program",0,('UG Trad Input'!AG3+'UG Non-Trad Input'!AG3+'Grad Input'!AG3+'Certificate Input'!AG4+'Certificate Input'!AG10)*Assumptions!$F$19) -> 0 | AH17: =IF('General Input'!$B$6="Online Program",0,('UG Trad Input'!AH3+'UG Non-Trad Input'!AH3+'Grad Input'!AH3+'Certificate Input'!AH4+'Certificate Input'!AH10)*Assumptions!$F$19) -> 0 | AI17: =IF('General Input'!$B$6="Online Program",0,('UG Trad Input'!AI3+'UG Non-Trad Input'!AI3+'Grad Input'!AI3+'Certificate Input'!AI4+'Certificate Input'!AI10)*Assumptions!$F$19) -> 0 | AJ17: =IF('General Input'!$B$6="Online Program",0,('UG Trad Input'!AJ3+'UG Non-Trad Input'!AJ3+'Grad Input'!AJ3+'Certificate Input'!AJ4+'Certificate Input'!AJ10)*Assumptions!$F$19) -> 0 | AK17: =IF('General Input'!$B$6="Online Program",0,('UG Trad Input'!AK3+'UG Non-Trad Input'!AK3+'Grad Input'!AK3+'Certificate Input'!AK4+'Certificate Input'!AK10)*Assumptions!$F$19) -> 0
A18: Equipment Costs
A19: Departmental Costs % of net revenue | C19: =Assumptions!$B$16 -> 0.1 | J19: =Assumptions!$C$16 -> 0.1 | Q19: =Assumptions!$D$16 -> 0.1 | X19: =Assumptions!$E$16 -> 0.1 | AE19: =Assumptions!$F$16 -> 0.1
A20: Departmental Costs | C20: ='By Term Summary'!B$16*$C$19 -> 0 | D20: ='By Term Summary'!C$16*$C$19 -> 0 | E20: ='By Term Summary'!D$16*$C$19 -> 0 | F20: ='By Term Summary'!E$16*$C$19 -> 0 | G20: ='By Term Summary'!F$16*$C$19 -> 0 | H20: ='By Term Summary'!G$16*$C$19 -> 0 | I20: ='By Term Summary'!H$16*$C$19 -> 0 | J20: ='By Term Summary'!I$16*$J$19 -> 0 | K20: ='By Term Summary'!J$16*$J$19 -> 0 | L20: ='By Term Summary'!K$16*$J$19 -> 0 | M20: ='By Term Summary'!L$16*$J$19 -> 0 | N20: ='By Term Summary'!M$16*$J$19 -> 0 | O20: ='By Term Summary'!N$16*$J$19 -> 0 | P20: ='By Term Summary'!O$16*$J$19 -> 0 | Q20: ='By Term Summary'!P$16*$Q$19 -> 0 | R20: ='By Term Summary'!Q$16*$Q$19 -> 0 | S20: ='By Term Summary'!R$16*$Q$19 -> 0 | T20: ='By Term Summary'!S$16*$Q$19 -> 0 | U20: ='By Term Summary'!T$16*$Q$19 -> 0 | V20: ='By Term Summary'!U$16*$Q$19 -> 0 | W20: ='By Term Summary'!V$16*$Q$19 -> 0 | X20: ='By Term Summary'!W$16*$X$19 -> 0 | Y20: ='By Term Summary'!X$16*$X$19 -> 0 | Z20: ='By Term Summary'!Y$16*$X$19 -> 0 | AA20: ='By Term Summary'!Z$16*$X$19 -> 0 | AB20: ='By Term Summary'!AA$16*$X$19 -> 0 | AC20: ='By Term Summary'!AB$16*$X$19 -> 0 | AD20: ='By Term Summary'!AC$16*$X$19 -> 0 | AE20: ='By Term Summary'!AD$16*$AE$19 -> 0 | AF20: ='By Term Summary'!AE$16*$AE$19 -> 0 | AG20: ='By Term Summary'!AF$16*$AE$19 -> 0 | AH20: ='By Term Summary'!AG$16*$AE$19 -> 0 | AI20: ='By Term Summary'!AH$16*$AE$19 -> 0 | AJ20: ='By Term Summary'!AI$16*$AE$19 -> 0 | AK20: ='By Term Summary'!AJ$16*$AE$19 -> 0
A21: Marketing | C21: =Assumptions!$B$17 -> 25000 | J21: =Assumptions!$C$17 -> 25000 | Q21: =Assumptions!$D$17 -> 25000 | X21: =Assumptions!$E$17 -> 25000 | AE21: =Assumptions!$F$17 -> 25000
A22: Office start up costs for new faculty and staff (computer & phone) | B22: =Assumptions!$B$20 -> 1500 | C22: =$B$22*(ROUNDUP((C3+C4),0)) -> 0 | D22: 0 | E22: 0 | F22: 0 | G22: 0 | H22: 0 | I22: 0 | J22: 0 | K22: 0 | L22: 0 | M22: 0 | N22: 0 | O22: 0 | P22: 0 | Q22: 0 | R22: 0 | S22: 0 | T22: 0 | U22: 0 | V22: 0 | W22: 0 | X22: 0 | Y22: 0 | Z22: 0 | AA22: 0 | AB22: 0 | AC22: 0 | AD22: 0 | AE22: 0 | AF22: 0 | AG22: 0 | AH22: 0 | AI22: 0 | AJ22: 0 | AK22: 0
A26: Facilities - remodel
A27: Facilities - build out/new
A28: Other initial investment
A30: Overhead, including facilities & marketing | C30: ='By Term Summary'!B$16*Assumptions!$B$18 -> 0 | D30: ='By Term Summary'!C$16*Assumptions!$B$18 -> 0 | E30: ='By Term Summary'!D$16*Assumptions!$B$18 -> 0 | F30: ='By Term Summary'!E$16*Assumptions!$B$18 -> 0 | G30: ='By Term Summary'!F$16*Assumptions!$B$18 -> 0 | H30: ='By Term Summary'!G$16*Assumptions!$B$18 -> 0 | I30: ='By Term Summary'!H$16*Assumptions!$B$18 -> 0 | J30: ='By Term Summary'!I$16*Assumptions!$C$18 -> 0 | K30: ='By Term Summary'!J$16*Assumptions!$C$18 -> 0 | L30: ='By Term Summary'!K$16*Assumptions!$C$18 -> 0 | M30: ='By Term Summary'!L$16*Assumptions!$C$18 -> 0 | N30: ='By Term Summary'!M$16*Assumptions!$C$18 -> 0 | O30: ='By Term Summary'!N$16*Assumptions!$C$18 -> 0 | P30: ='By Term Summary'!O$16*Assumptions!$C$18 -> 0 | Q30: ='By Term Summary'!P$16*Assumptions!$D$18 -> 0 | R30: ='By Term Summary'!Q$16*Assumptions!$D$18 -> 0 | S30: ='By Term Summary'!R$16*Assumptions!$D$18 -> 0 | T30: ='By Term Summary'!S$16*Assumptions!$D$18 -> 0 | U30: ='By Term Summary'!T$16*Assumptions!$D$18 -> 0 | V30: ='By Term Summary'!U$16*Assumptions!$D$18 -> 0 | W30: ='By Term Summary'!V$16*Assumptions!$D$18 -> 0 | X30: ='By Term Summary'!W$16*Assumptions!$E$18 -> 0 | Y30: ='By Term Summary'!X$16*Assumptions!$E$18 -> 0 | Z30: ='By Term Summary'!Y$16*Assumptions!$E$18 -> 0 | AA30: ='By Term Summary'!Z$16*Assumptions!$E$18 -> 0 | AB30: ='By Term Summary'!AA$16*Assumptions!$E$18 -> 0 | AC30: ='By Term Summary'!AB$16*Assumptions!$E$18 -> 0 | AD30: ='By Term Summary'!AC$16*Assumptions!$E$18 -> 0 | AE30: ='By Term Summary'!AD$16*Assumptions!$F$18 -> 0 | AF30: ='By Term Summary'!AE$16*Assumptions!$F$18 -> 0 | AG30: ='By Term Summary'!AF$16*Assumptions!$F$18 -> 0 | AH30: ='By Term Summary'!AG$16*Assumptions!$F$18 -> 0 | AI30: ='By Term Summary'!AH$16*Assumptions!$F$18 -> 0 | AJ30: ='By Term Summary'!AI$16*Assumptions!$F$18 -> 0 | AK30: ='By Term Summary'!AJ$16*Assumptions!$F$18 -> 0
A32: Non-Salary Expenses | C32: =C16+C17+C20+C21+C22 -> 25000 | D32: 0 | E32: 0 | F32: 0 | G32: 0 | H32: 0 | I32: 0 | J32: 25000 | K32: 0 | L32: 0 | M32: 0 | N32: 0 | O32: 0 | P32: 0 | Q32: 25000 | R32: 0 | S32: 0 | T32: 0 | U32: 0 | V32: 0 | W32: 0 | X32: 25000 | Y32: 0 | Z32: 0 | AA32: 0 | AB32: 0 | AC32: 0 | AD32: 0 | AE32: 25000 | AF32: 0 | AG32: 0 | AH32: 0 | AI32: 0 | AJ32: 0 | AK32: 0
A33: Capital Expenses | C33: =C18+C26+C27 -> 0 | D33: 0 | E33: 0 | F33: 0 | G33: 0 | H33: 0 | I33: 0 | J33: 0 | K33: 0 | L33: 0 | M33: 0 | N33: 0 | O33: 0 | P33: 0 | Q33: 0 | R33: 0 | S33: 0 | T33: 0 | U33: 0 | V33: 0 | W33: 0 | X33: 0 | Y33: 0 | Z33: 0 | AA33: 0 | AB33: 0 | AC33: 0 | AD33: 0 | AE33: 0 | AF33: 0 | AG33: 0 | AH33: 0 | AI33: 0 | AJ33: 0 | AK33: 0
A35: Total Expenses | C35: =C13+C32+C33 -> 25000 | D35: 0 | E35: 0 | F35: 0 | G35: 0 | H35: 0 | I35: 0 | J35: 25000 | K35: 0 | L35: 0 | M35: 0 | N35: 0 | O35: 0 | P35: 0 | Q35: 25000 | R35: 0 | S35: 0 | T35: 0 | U35: 0 | V35: 0 | W35: 0 | X35: 25000 | Y35: 0 | Z35: 0 | AA35: 0 | AB35: 0 | AC35: 0 | AD35: 0 | AE35: 25000 | AF35: 0 | AG35: 0 | AH35: 0 | AI35: 0 | AJ35: 0 | AK35: 0
A37: Transfers
A39: Administrative Overhead | C39: =C30 -> 0 | D39: 0 | E39: 0 | F39: 0 | G39: 0 | H39: 0 | I39: 0 | J39: 0 | K39: 0 | L39: 0 | M39: 0 | N39: 0 | O39: 0 | P39: 0 | Q39: 0 | R39: 0 | S39: 0 | T39: 0 | U39: 0 | V39: 0 | W39: 0 | X39: 0 | Y39: 0 | Z39: 0 | AA39: 0 | AB39: 0 | AC39: 0 | AD39: 0 | AE39: 0 | AF39: 0 | AG39: 0 | AH39: 0 | AI39: 0 | AJ39: 0 | AK39: 0
A40: Total Overhead | C40: =SUM(C39:C39) -> 0 | D40: 0 | E40: 0 | F40: 0 | G40: 0 | H40: 0 | I40: 0 | J40: 0 | K40: 0 | L40: 0 | M40: 0 | N40: 0 | O40: 0 | P40: 0 | Q40: 0 | R40: 0 | S40: 0 | T40: 0 | U40: 0 | V40: 0 | W40: 0 | X40: 0 | Y40: 0 | Z40: 0 | AA40: 0 | AB40: 0 | AC40: 0 | AD40: 0 | AE40: 0 | AF40: 0 | AG40: 0 | AH40: 0 | AI40: 0 | AJ40: 0 | AK40: 0
A43: Utilizing Reallocated Faculty and Staff:
A45: Reallocated Faculty FTEs
A46: Reallocated Staff FTEs
A48: Faculty Salaries to be reallocated
A49: Adjunct faculty to be reallocated
A50: Staff to be reallocated
A51: Benefits Rate | C51: =Assumptions!$B$15 -> 0.286 | J51: =Assumptions!$C$15 -> 0.286 | Q51: =Assumptions!$D$15 -> 0.286 | X51: =Assumptions!$E$15 -> 0.286 | AE51: =Assumptions!$F$15 -> 0.286
A52: Total Salaries | C52: =SUM(C48:C50) -> 0 | D52: 0 | E52: 0 | F52: 0 | G52: 0 | H52: 0 | I52: 0 | J52: 0 | K52: 0 | L52: 0 | M52: 0 | N52: 0 | O52: 0 | P52: 0 | Q52: 0 | R52: 0 | S52: 0 | T52: 0 | U52: 0 | V52: 0 | W52: 0 | X52: 0 | Y52: 0 | Z52: 0 | AA52: 0 | AB52: 0 | AC52: 0 | AD52: 0 | AE52: 0 | AF52: 0 | AG52: 0 | AH52: 0 | AI52: 0 | AJ52: 0 | AK52: 0
A53: Benefits | C53: =SUM(C48:C50)*$C$51 -> 0 | D53: =SUM(D48:D50)*$C$51 -> 0 | E53: 0 | F53: 0 | G53: 0 | H53: 0 | I53: 0 | J53: =SUM(J48:J50)*$J$51 -> 0 | K53: =SUM(K48:K50)*$J$51 -> 0 | L53: 0 | M53: 0 | N53: 0 | O53: 0 | P53: 0 | Q53: =SUM(Q48:Q50)*$Q$51 -> 0 | R53: =SUM(R48:R50)*$Q$51 -> 0 | S53: 0 | T53: 0 | U53: 0 | V53: 0 | W53: 0 | X53: =SUM(X48:X50)*$X$51 -> 0 | Y53: =SUM(Y48:Y50)*$X$51 -> 0 | Z53: 0 | AA53: 0 | AB53: 0 | AC53: 0 | AD53: 0 | AE53: =SUM(AE48:AE50)*$AE$51 -> 0 | AF53: =SUM(AF48:AF50)*$AE$51 -> 0 | AG53: 0 | AH53: 0 | AI53: 0 | AJ53: 0 | AK53: 0

Sheet DEFS (hidden)
A2: Program Type
A3: Traditional Undergraduate Revenue
A4: Non-Traditional Undergraduate Revenue
A5: Graduate Program Revenue
A6: Certificate Program - Flat Rate
A7: Certificate Program - Credit Hour Based
A8: Other Revenue

Sheet prt_T_UG
A2: New Program Financial Input
B3: Program Name:
B4: Program Type: | D4: Traditional Undergraduate Revenue
B5: Contact Name:
B7: Traditional Undergrad - Expected Full Time Enrollment | D7: Year 1 | E7: Year 2 | F7: Year 3 | G7: Year 4 | H7: Year 5
B8: Fall
C9: Freshmen | I9: =SUM(D9:H9) -> 0
C10: Sophomore | I10: =SUM(D10:H10) -> 0
C11: Junior | I11: =SUM(D11:H11) -> 0
C12: Senior | I12: =SUM(D12:H12) -> 0
C13: Total | D13: =SUM(D9:D12) -> 0 | E13: =SUM(E9:E12) -> 0 | F13: =SUM(F9:F12) -> 0 | G13: =SUM(G9:G12) -> 0 | H13: =SUM(H9:H12) -> 0
B14: Spring
C15: Freshmen | I15: =SUM(D15:H15) -> 0
C16: Sophomore | I16: =SUM(D16:H16) -> 0
C17: Junior | I17: =SUM(D17:H17) -> 0
C18: Senior | I18: =SUM(D18:H18) -> 0
D19: =SUM(D15:D18) -> 0 | E19: =SUM(E15:E18) -> 0 | F19: =SUM(F15:F18) -> 0 | G19: =SUM(G15:G18) -> 0 | H19: =SUM(H15:H18) -> 0

Sheet prt_NT_UG
A2: New Program Financial Input
B3: Program Name:
B4: Program Type: | D4: Non-Traditional Undergraduate Revenue
B5: Contact Name:
B7: Non-Traditional Undergrad
B8: Freshman Expected Enrollment
D9: Year 1 | E9: Year 2 | F9: Year 3 | G9: Year 4 | H9: Year 5
B10: Summer Term 2 | I10: =SUM(D10:H10) -> 0
B11: Fall Term 1 | I11: =SUM(D11:H11) -> 0
B12: Fall Term 2 | I12: =SUM(D12:H12) -> 0
B13: Winter Term | I13: =SUM(D13:H13) -> 0
B14: Spring Term 1 | I14: 0
B15: Spring Term 2 | I15: 0
B16: Summer Term 1 | I16: =SUM(D16:H16) -> 0
C17: Total | D17: =SUM(D10:D16) -> 0 | E17: =SUM(E10:E16) -> 0 | F17: =SUM(F10:F16) -> 0 | G17: =SUM(G10:G16) -> 0 | H17: =SUM(H10:H16) -> 0
B19: Sophomore Expected Enrollment
D20: Year 1 | E20: Year 2 | F20: Year 3 | G20: Year 4 | H20: Year 5
B21: Summer Term 2 | I21: =SUM(D21:H21) -> 0
B22: Fall Term 1 | I22: =SUM(D22:H22) -> 0
B23: Fall Term 2 | I23: =SUM(D23:H23) -> 0
B24: Winter Term | I24: =SUM(D24:H24) -> 0
B25: Spring Term 1 | I25: 0
B26: Spring Term 2 | I26: 0
B27: Summer Term 1 | I27: =SUM(D27:H27) -> 0
C28: Total | D28: =SUM(D21:D27) -> 0 | E28: =SUM(E21:E27) -> 0 | F28: =SUM(F21:F27) -> 0 | G28: =SUM(G21:G27) -> 0 | H28: =SUM(H21:H27) -> 0
B30: Junior Expected Enrollment
D31: Year 1 | E31: Year 2 | F31: Year 3 | G31: Year 4 | H31: Year 5
B32: Summer Term 2 | I32: =SUM(D32:H32) -> 0
B33: Fall Term 1 | I33: =SUM(D33:H33) -> 0
B34: Fall Term 2 | I34: =SUM(D34:H34) -> 0
B35: Winter Term | I35: =SUM(D35:H35) -> 0
B36: Spring Term 1 | I36: 0
B37: Spring Term 2 | I37: 0
B38: Summer Term 1 | I38: =SUM(D38:H38) -> 0
C39: Total | D39: =SUM(D32:D38) -> 0 | E39: =SUM(E32:E38) -> 0 | F39: =SUM(F32:F38) -> 0 | G39: =SUM(G32:G38) -> 0 | H39: =SUM(H32:H38) -> 0
B41: Senior Expected Enrollment
D42: Year 1 | E42: Year 2 | F42: Year 3 | G42: Year 4 | H42: Year 5
B43: Summer Term 2 | I43: =SUM(D43:H43) -> 0
B44: Fall Term 1 | I44: =SUM(D44:H44) -> 0
B45: Fall Term 2 | I45: =SUM(D45:H45) -> 0
B46: Winter Term | I46: =SUM(D46:H46) -> 0
B47: Spring Term 1 | I47: 0
B48: Spring Term 2 | I48: 0
B49: Summer Term 1 | I49: =SUM(D49:H49) -> 0
C50: Total | D50: =SUM(D43:D49) -> 0 | E50: =SUM(E43:E49) -> 0 | F50: =SUM(F43:F49) -> 0 | G50: =SUM(G43:G49) -> 0 | H50: =SUM(H43:H49) -> 0
B52: Average Credit Hours per Student
D53: Year 1 | E53: Year 2 | F53: Year 3 | G53: Year 4 | H53: Year 5
B54: Summer Term 2
B55: Fall Term 1
B56: Fall Term 2
B57: Winter Term
B58: Spring Term 1
B59: Spring Term 2
B60: Summer Term 1
B62: Tuition & Fees Income
D63: Year 1
B64: Tuition per Credit Hour | D64: 400
B65: Tuitino Discount Rate | D65: 0
D66: 0

Sheet prt_GRAD
A2: New Program Financial Input
B3: Program Name:
B4: Program Type: | D4: Graduate Program Revenue
B5: Contact Name:
B7: Graduate
B8: 1st Year Students
D9: Year 1 | E9: Year 2 | F9: Year 3 | G9: Year 4 | H9: Year 5
B10: Summer Term 2 | I10: =SUM(D10:H10) -> 0
B11: Fall Term 1 | I11: =SUM(D11:H11) -> 0
B12: Fall Term 2 | I12: =SUM(D12:H12) -> 0
B13: Winter Term | I13: =SUM(D13:H13) -> 0
B14: Spring Term 1 | I14: 0
B15: Spring Term 2 | I15: 0
B16: Summer Term 1 | I16: =SUM(D16:H16) -> 0
C17: Total | D17: =SUM(D10:D16) -> 0 | E17: =SUM(E10:E16) -> 0 | F17: =SUM(F10:F16) -> 0 | G17: =SUM(G10:G16) -> 0 | H17: =SUM(H10:H16) -> 0
B19: 2nd Year Students
D20: Year 1 | E20: Year 2 | F20: Year 3 | G20: Year 4 | H20: Year 5
B21: Summer Term 2 | I21: =SUM(D21:H21) -> 0
B22: Fall Term 1 | I22: =SUM(D22:H22) -> 0
B23: Fall Term 2 | I23: =SUM(D23:H23) -> 0
B24: Winter Term | I24: =SUM(D24:H24) -> 0
B25: Spring Term 1 | I25: 0
B26: Spring Term 2 | I26: 0
B27: Summer Term 1 | I27: =SUM(D27:H27) -> 0
C28: Total | D28: =SUM(D21:D27) -> 0 | E28: =SUM(E21:E27) -> 0 | F28: =SUM(F21:F27) -> 0 | G28: =SUM(G21:G27) -> 0 | H28: =SUM(H21:H27) -> 0
B31: Average Credit Hours per 1st Year Student
D32: Year 1 | E32: Year 2 | F32: Year 3 | G32: Year 4 | H32: Year 5
B33: Summer Term 2
B34: Fall Term 1
B35: Fall Term 2
B36: Winter Term
B37: Spring Term 1
B38: Spring Term 2
B39: Summer Term 1
B41: Average Credit Hours per 2nd Year Student
D42: Year 1 | E42: Year 2 | F42: Year 3 | G42: Year 4 | H42: Year 5
B43: Summer Term 2
B44: Fall Term 1
B45: Fall Term 2
B46: Winter Term
B47: Spring Term 1
B48: Spring Term 2
B49: Summer Term 1
B51: Tuition & Fees Income
D52: Year 1
B53: Tuition per Credit Hour | D53: 756
B54: Tuitino Discount Rate | D54: 0
D55: 0

Sheet prt_CERT_FR
A2: New Program Financial Input
B3: Program Name:
B4: Program Type: | D4: Certificate Program - Flat Rate
B5: Contact Name:
B7: Certificate Program - Flat Rate
B8: Expected Enrollment
D9: Year 1 | E9: Year 2 | F9: Year 3 | G9: Year 4 | H9: Year 5
B10: Summer Term 2 | I10: =SUM(D10:H10) -> 0
B11: Fall Term 1 | I11: =SUM(D11:H11) -> 0
B12: Fall Term 2 | I12: =SUM(D12:H12) -> 0
B13: Winter Term | I13: =SUM(D13:H13) -> 0
B14: Spring Term 1 | I14: 0
B15: Spring Term 2 | I15: 0
B16: Summer Term 1 | I16: =SUM(D16:H16) -> 0
C17: Total | D17: =SUM(D10:D16) -> 0 | E17: =SUM(E10:E16) -> 0 | F17: =SUM(F10:F16) -> 0 | G17: =SUM(G10:G16) -> 0 | H17: =SUM(H10:H16) -> 0
B20: Certificate Revenue
D21: Year 1
B22: Revenue per Student

Sheet prt_CERT_CH
A2: New Program Financial Input
B3: Program Name:
B4: Program Type: | D4: Certificate Program - Credit Hour Based
B5: Contact Name:
B7: Certificate Program - Credit Hour Based
B8: Expected Enrollment
D9: Year 1 | E9: Year 2 | F9: Year 3 | G9: Year 4 | H9: Year 5
B10: Summer Term 2 | I10: =SUM(D10:H10) -> 0
B11: Fall Term 1 | I11: =SUM(D11:H11) -> 0
B12: Fall Term 2 | I12: =SUM(D12:H12) -> 0
B13: Winter Term | I13: =SUM(D13:H13) -> 0
B14: Spring Term 1 | I14: 0
B15: Spring Term 2 | I15: 0
B16: Summer Term 1 | I16: =SUM(D16:H16) -> 0
C17: Total | D17: =SUM(D10:D16) -> 0 | E17: =SUM(E10:E16) -> 0 | F17: =SUM(F10:F16) -> 0 | G17: =SUM(G10:G16) -> 0 | H17: =SUM(H10:H16) -> 0
B19: Average Credit Hours per Student
D20: Year 1 | E20: Year 2 | F20: Year 3 | G20: Year 4 | H20: Year 5
B21: Summer Term 2
B22: Fall Term 1
B23: Fall Term 2
B24: Winter Term
B25: Spring Term 1
B26: Spring Term 2
B27: Summer Term 1
B30: Certificate Revenue
D31: Year 1
B32: Revenue per Credit Hour

Sheet prt_OthRev
A2: New Program Financial Input
B3: Program Name:
B4: Program Type: | D4: Other Revenue
B5: Contact Name:
B7: Other Revenue
D8: Year 1 | E8: Year 2 | F8: Year 3 | G8: Year 4 | H8: Year 5
B9: Endowment Income | I9: =SUM(D9:H9) -> 0
B10: Gift Income | I10: =SUM(D10:H10) -> 0
B11: Other Revenue | I11: =SUM(D11:H11) -> 0
C12: Total | D12: =SUM(D9:D11) -> 0 | E12: =SUM(E9:E11) -> 0 | F12: =SUM(F9:F11) -> 0 | G12: =SUM(G9:G11) -> 0 | H12: =SUM(H9:H11) -> 0

Sheet prt_Expenses
A2: Expenses
B3: Program Name:
B4: Program Type:
B5: Contact Name:
B7: Program Expenses
D8: Year 1 | E8: Year 2 | F8: Year 3 | G8: Year 4 | H8: Year 5
B9: New Faculty FTEs | I9: =SUM(D9:H9) -> 0
B10: New Staff FTEs | I10: =SUM(D10:H10) -> 0
B11: Course Development Stipend | I11: =SUM(D11:H11) -> 0
B12: TA/Fellowship Stipend | I12: =SUM(D12:H12) -> 0
B13: Student Employment | I13: 0
B14: Total New Faculty Salary | I14: 0
B15: Total Adjunct Faculty Salary | I15: =SUM(D15:H15) -> 0
B16: Total New Staff Salary | I16: =SUM(D16:H16) -> 0
B19: Other Expenses
D20: Year 1 | E20: Year 2 | F20: Year 3 | G20: Year 4 | H20: Year 5 | I20: =SUM(D20:H20) -> 0
B21: Equipment Costs | I21: 0
B22: Facilities - Remodel | I22: 0
B23: Facilities - New Build | I23: 0
B24: Other non-salary expenses | I24: 0
